Cogmind - Beta 15 --- EXPLORER MODE // 2025.09.21 @ 14:05:48 // Winter2019/RPGLIKE Player: RR-3MY Result: Destroyed by Combat Programmer with EMDS Performance ------------- Evolutions (9) 4500 Regions Visited (29) 5800 Robots Destroyed (189) 945 Value Destroyed (10565) 10565 Prototype IDs (67) 1340 Alien Tech Used (3) 600 Bonus (6560) 6560 TOTAL SCORE: 30310 Bonus ------- High Alert Combat Kills 615 Follower Combat Kills 3606 Entered DSFs 500 Aligned with FarCom 300 Met Data Miner 300 Met Imprinter 300 Was Imprinted 300 Met Zhirov 300 Met R17 at Cetus 500 Friendly Fire -161 Cogmind --------- Core Integrity 0/1900 Matter 291/300 Energy 223/600 System Corruption 27% Temperature Cool (0) Movement Core (50) Location -1/Command Parts ------- > --- POWER (2) -------- (None) > --- PROPULSION (4) --- (None) > --- UTILITY (12) ----- (None) > --- WEAPON (6) ------- (None) > --- INVENTORY (6) ---- Long-range Sensor Array Long-range Terrain Scanner Transdimensional Reconstructor Grenade Launcher Peak State ------------ > --- POWER ------------ Zionite Heavy DM Reactor Quantum Reactor > --- PROPULSION ------- Biometal Heavy Treads Biometal Heavy Treads > --- UTILITY ---------- Advanced Cryofiber Web Experimental Heat Sink Long-range Sensor Array Experimental Signal Interpreter Long-range Terrain Scanner Experimental Targeting Computer Experimental Targeting Computer Advanced Target Analyzer Experimental Core Analyzer Improved Armor Integrity Analyzer Makeshift ECM Suite Advanced Force Field > --- WEAPON ----------- Zionite Phaser-S Phase Gun Advanced Plasma Rifle Advanced Variable Charge Gun Heavy Dispersion Rifle Phasing Sabre > --- INVENTORY -------- Protomatter Protomatter Advanced Dynamic Insulation System Transdimensional Reconstructor Grenade Launcher [Rating: 183] Favorites ----------- Power Light Nuclear Core Engine Light Angular Momentum Engine Power Core Light Nuclear Core Reactor Fusion Reactor Propulsion Armored Treads Treads Armored Treads Utility Makeshift Hacking Suite Device Makeshift ECM Suite Processor Improved Targeting Computer Hackware Makeshift Hacking Suite Protection Improved Light Armor Plating Weapon Wave Gun Energy Gun Wave Gun Energy Cannon Guided Plasma Cannon Launcher Grenade Launcher Special Weapon Mining Laser Slashing Weapon Chainsword Special Melee Weapon Dirty Datajack Build | -11 -10 -10 -10 -9 -8 -7 -7 -7 -6 -6 -6 -6 -6 -5 -5 -5 -5 -5 -4 -4 -4 -4 -4 -4 -3 -3 -2 -1 -1 ------- Run | Yrd Mat Min Exi Min Mat Fac Low Zio Pro Fac Low Low Dat Pro Fac Upp Upp Zhi Pro Fac Ext Cet Arc Hub Res DSF Res Acc Com Slots Evolved 19 | 6 . 1 . . 2 . 3 . 2 . . . . 1 . 1 . . . 1 . . . . . 1 1 . . Power 1 | . . . . . 1 . . . . . . . . . . . . . . . . . . . . . . . . Propulsion 3 | 2 . . . . . . . . 1 . . . . . . . . . . . . . . . . . . . . Utility 10 | 3 . . . . 1 . 3 . 1 . . . . . . . . . . 1 . . . . . . 1 . . Weapon 5 | 1 . 1 . . . . . . . . . . . 1 . 1 . . . . . . . . . 1 . . . Parts Attached 108 | 9 4 1 . 3 2 1 5 2 7 . . . . 5 6 4 3 3 6 9 3 4 1 1 . 2 5 13 9 Power 11 | 1 1 . . . 1 . . . 1 . . . . 3 . . 1 1 . . . 1 . . . . . 1 . Engine 4 | 1 1 . . . . . . . . . . . . 1 . . 1 . . . . . . . . . . . . Core 3 | . . . . . 1 . . . 1 . . . . 1 . . . . . . . . . . . . . . . Reactor 4 | . . . . . . . . . . . . . . 1 . . . 1 . . . 1 . . . . . 1 . Propulsion 12 | 2 . . . . . . . . 3 . . . . . 1 . . . . 2 . 1 . . . 1 1 1 . Treads 12 | 2 . . . . . . . . 3 . . . . . 1 . . . . 2 . 1 . . . 1 1 1 . Leg . | . . . . . . . . . . . . . . . . . . . . . . . . . . . . . . Wheel . | . . . . . . . . . . . . . . . . . . . . . . . . . . . . . . Hover . | . . . . . . . . . . . . . . . . . . . . . . . . . . . . . . Flight . | . . . . . . . . . . . . . . . . . . . . . . . . . . . . . . Utility 59 | 4 2 1 . 1 . . 4 2 3 . . . . 1 3 4 1 2 2 6 2 2 1 1 . 1 3 5 8 Device 31 | 2 1 1 . 1 . . 2 1 1 . . . . . 1 4 . 1 2 4 2 . . 1 . 1 2 1 3 Storage . | . . . . . . . . . . . . . . . . . . . . . . . . . . . . . . Processor 12 | 1 1 . . . . . 1 1 1 . . . . . 1 . . . . 1 . . . . . . . 1 4 Hackware 2 | . . . . . . . 1 . . . . . . 1 . . . . . . . . . . . . . . . Protection 14 | 1 . . . . . . . . 1 . . . . . 1 . 1 1 . 1 . 2 1 . . . 1 3 1 Artifact . | . . . . . . . . . . . . . . . . . . . . . . . . . . . . . . Weapon 26 | 2 1 . . 2 1 1 1 . . . . . . 1 2 . 1 . 4 1 1 . . . . . 1 6 1 Energy Gun 18 | 2 . . . . . 1 . . . . . . . 1 1 . 1 . 4 . . . . . . . 1 6 1 Energy Cannon 1 | . . . . 1 . . . . . . . . . . . . . . . . . . . . . . . . . Ballistic Gun . | . . . . . . . . . . . . . . . . . . . . . . . . . . . . . . Ballistic Cannon . | . . . . . . . . . . . . . . . . . . . . . . . . . . . . . . Launcher 1 | . . . . . 1 . . . . . . . . . . . . . . . . . . . . . . . . Special Weapon 1 | . 1 . . . . . . . . . . . . . . . . . . . . . . . . . . . . Impact Weapon . | . . . . . . . . . . . . . . . . . . . . . . . . . . . . . . Slashing Weapon 4 | . . . . 1 . . 1 . . . . . . . . . . . . 1 1 . . . . . . . . Piercing Weapon . | . . . . . . . . . . . . . . . . . . . . . . . . . . . . . . Special Melee Weapon 1 | . . . . . . . . . . . . . . . 1 . . . . . . . . . . . . . . Unidentified Prototypes 24 | . . . . 1 . . . 1 . . . 1 . . . 1 . 4 . 1 . 2 . . . . 2 9 2 Parts Lost 3 | . . . . . . . . . . . . . . . . . 1 . . . . . . . . . . . 2 Power 1 | . . . . . . . . . . . . . . . . . 1 . . . . . . . . . . . . Propulsion . | . . . . . . . . . . . . . . . . . . . . . . . . . . . . . . Utility 2 | . . . . . . . . . . . . . . . . . . . . . . . . . . . . . 2 Weapon . | . . . . . . . . . . . . . . . . . . . . . . . . . . . . . . Highest Loss Streak 1 | . . . . . . . . . . . . . . . . . 1 . . . . . . . . . . . 1 To Critical Strikes . | . . . . . . . . . . . . . . . . . . . . . . . . . . . . . . Average Backups 3 | . . 1 1 3 3 3 2 3 3 3 3 5 5 5 4 5 4 4 5 5 3 3 2 2 2 2 2 3 3 Power . | . . . . . . . . . . . . . . . . . . . . . . . . . . . . . . Propulsion . | . . . . . . . . . . . . . . . . . . . . . . . . . . . . . . Utility 1 | . . . . . . 1 1 1 1 1 1 1 1 1 2 4 3 2 2 3 1 1 . . . . . 1 1 Weapon 1 | . . 1 1 2 1 1 1 1 1 1 1 1 1 1 . 1 1 2 1 1 1 1 1 1 1 1 1 1 1 Tool/Special . | . . . . . . . . . . . . . . . . . . . . . . . . . . . . . . Unused Backups 5 | . . . . . . . 1 1 . . . . . . 2 . . . . . . . . . . . . . 1 Power . | . . . . . . . . . . . . . . . . . . . . . . . . . . . . . . Propulsion . | . . . . . . . . . . . . . . . . . . . . . . . . . . . . . . Utility 1 | . . . . . . . . 1 . . . . . . . . . . . . . . . . . . . . . Weapon . | . . . . . . . . . . . . . . . . . . . . . . . . . . . . . . Tool/Special 4 | . . . . . . . 1 . . . . . . . 2 . . . . . . . . . . . . . 1 Average Slot Usage (%) 88 | . 87 88 90 90 87 76 80 82 90 94 94 93 94 93 93 87 90 89 92 89 89 86 85 86 86 82 81 86 86 Engine 3 | . 9 9 9 9 6 . . . . . . . . 2 5 4 6 7 4 4 4 . . . . . . . . Core 3 | . . . . . 1 7 6 6 9 11 11 11 11 8 5 4 2 . . . . . . . . . . . . Reactor 2 | . . . . . . . . . . . . . . . . . . 1 4 4 4 7 9 9 9 8 8 8 7 Treads 14 | . 20 18 18 18 17 15 13 12 14 16 16 16 16 15 17 19 18 19 19 13 13 9 9 9 9 8 8 8 7 Device 22 | . 23 22 27 27 26 23 24 25 22 22 22 22 22 16 14 15 19 19 19 21 30 29 26 27 27 26 28 29 20 Processor 12 | . 13 13 9 9 8 7 10 13 18 16 16 16 16 15 12 9 9 9 9 9 9 9 9 9 9 8 8 9 19 Hackware 4 | . . . . . . . 4 6 5 5 5 5 5 10 10 9 9 9 9 8 . . . . . . . . . Protection 3 | . 1 . . . . . . . 1 5 5 4 5 5 5 4 3 3 4 3 4 5 9 9 9 8 5 6 3 Energy Gun 15 | . 19 17 18 18 16 9 12 12 11 11 11 11 11 10 11 14 15 19 20 18 18 18 18 18 18 17 16 19 19 Slashing Weapon 3 | . . . . 1 7 7 6 6 3 1 5 5 5 3 4 4 3 . . 3 4 4 4 4 4 4 4 4 3 Peak Build Rating 183 | 9 9 10 11 21 15 18 29 42 50 50 52 52 52 61 80 87 90 79 99 128 132 147 143 137 137 142 150 172 183 Average Rating 76 | 6 8 9 10 11 13 15 25 30 44 48 50 51 52 57 70 80 82 76 87 117 130 138 142 136 137 141 144 163 178 On Entrance 71 | . 9 9 10 11 13 15 18 29 32 48 50 52 52 52 58 80 85 76 79 99 128 132 141 136 137 137 142 146 172 Naked Turns 12 | . . . . . . . . . . . . . . . . . . . . . . . . . . . . . 12 Heaviest Build 122 | 12 13 12 12 21 16 17 25 25 35 35 35 35 35 47 67 68 69 61 73 83 86 101 102 105 105 108 109 122 120 Greatest Support 155 | 40 40 40 40 40 40 40 40 40 60 60 60 60 65 65 92 92 92 92 92 132 132 155 155 155 155 155 155 155 155 Greatest Overweight (x) 2 | 1 2 . . . . . . . . . . . . . 1 . . . . . . . . . . . . . 1 Average Overweight (x) . | . . . . . . . . . . . . . . . . . . . . . . . . . . . . . . Largest Inventory Capacity 6 | 3 3 3 3 3 3 3 3 3 3 4 5 5 6 6 6 6 6 6 6 6 6 6 6 6 6 6 6 6 6 Average Capacity 4 | 2 3 3 3 3 3 3 3 3 3 3 4 5 5 6 6 6 6 6 6 6 6 6 6 6 6 6 6 6 6 Most Carried 6 | 1 2 3 3 3 3 3 3 3 3 3 5 5 5 6 6 6 5 5 6 6 5 5 5 4 4 4 6 6 6 Average Carried 4 | . . 2 2 3 2 3 2 3 3 3 3 5 5 5 5 5 4 4 5 5 4 5 4 4 4 4 4 5 4 Final Capacity 6 | 3 3 3 3 3 3 3 3 3 3 4 5 5 6 6 6 6 6 6 6 6 6 6 6 6 6 6 6 6 6 Final Carried 6 | . 2 3 3 3 3 3 3 3 3 3 5 5 5 6 5 5 4 5 6 5 5 5 4 4 4 4 6 5 4 Class Distribution -------------------- 46% | Wizard-Assassin 27% | Hacker-Assassin 9% | Wizard-Skirmisher 5% | Hacker-Mutant 4% | Hacker-Gunner 3% | Wizard-Gunner 3% | Hacker-Skirmisher Dominant Class ---------------- Hacker-Mutant | -10/Materials Hacker-Gunner | -10/Mines Hacker-Gunner | -10/Exiles Hacker-Skirmisher | -9/Mines Hacker-Assassin | -8/Materials Hacker-Mutant | -7/Factory Wizard-Assassin | -7/Lower Caves Wizard-Assassin | -7/Zion Wizard-Assassin | -6/Proximity Caves Wizard-Gunner | -6/Factory Wizard-Assassin | -6/Lower Caves Wizard-Assassin | -6/Lower Caves Wizard-Assassin | -6/Data Miner Wizard-Assassin | -5/Proximity Caves Wizard-Assassin | -5/Factory Wizard-Assassin | -5/Upper Caves Wizard-Assassin | -5/Upper Caves Wizard-Skirmisher | -5/Zhirov Wizard-Skirmisher | -4/Proximity Caves Wizard-Assassin | -4/Factory Hacker-Assassin | -4/Extension Hacker-Assassin | -4/Cetus Hacker-Assassin | -4/Archives Hacker-Assassin | -4/Hub_04(d) Hacker-Assassin | -3/Research Hacker-Assassin | -3/DSF Hacker-Assassin | -2/Research Hacker-Assassin | -1/Access Hacker-Assassin | -1/Command Resources | -11 -10 -10 -10 -9 -8 -7 -7 -7 -6 -6 -6 -6 -6 -5 -5 -5 -5 -5 -4 -4 -4 -4 -4 -4 -3 -3 -2 -1 -1 ----------- Run | Yrd Mat Min Exi Min Mat Fac Low Zio Pro Fac Low Low Dat Pro Fac Upp Upp Zhi Pro Fac Ext Cet Arc Hub Res DSF Res Acc Com Matter Collected 2364 | 212 102 66 . 10 80 . 90 20 144 . 10 20 . 90 100 110 78 . 237 255 100 60 30 50 . 30 50 160 260 Remotely . | . . . . . . . . . . . . . . . . . . . . . . . . . . . . . . Salvage Created 8195 | 107 295 105 . 65 631 . 165 . 418 . 251 . . 41 277 641 301 . 733 1194 76 488 112 600 . 126 . 447 1122 Parts 373 | 5 23 16 . 3 30 . 9 . 10 . 5 . . 3 26 17 12 . 15 46 7 13 10 18 . 4 . 36 65 Haulers Intercepted 2 | . 1 . . . . . . . . . . . . . . . . . . . . . . 1 . . . . . Recyclers Shooed 6 | . . . . . 1 . . . . . . . . . 3 . . . . 2 . . . . . . . . . Parts Field Recycled . | . . . . . . . . . . . . . . . . . . . . . . . . . . . . . . Retrieved Matter . | . . . . . . . . . . . . . . . . . . . . . . . . . . . . . . Parts Self-Destructed . | . . . . . . . . . . . . . . . . . . . . . . . . . . . . . . Prevented . | . . . . . . . . . . . . . . . . . . . . . . . . . . . . . . Kills | -11 -10 -10 -10 -9 -8 -7 -7 -7 -6 -6 -6 -6 -6 -5 -5 -5 -5 -5 -4 -4 -4 -4 -4 -4 -3 -3 -2 -1 -1 ------- Run | Yrd Mat Min Exi Min Mat Fac Low Zio Pro Fac Low Low Dat Pro Fac Upp Upp Zhi Pro Fac Ext Cet Arc Hub Res DSF Res Acc Com Combat Hostiles Destroyed 157 | . 8 2 . 1 11 . 7 . 8 . 6 . . 4 5 10 11 . 10 22 3 8 4 6 . 2 . 10 19 Melee 3 | . . . . . 1 . . . 1 . 1 . . . . . . . . . . . . . . . . . . Guns 129 | . 4 2 . . 9 . 6 . 6 . 5 . . 1 3 10 10 . 8 20 3 6 3 5 . 2 . 10 16 AOE 11 | . 4 . . 1 1 . . . . . . . . 3 2 . . . . . . . . . . . . . . Classes Destroyed 17 | 2 6 . . 1 2 . 2 . 1 . . . . . . . . . . . . . . . . 1 . . 2 Worker 4 | . 2 1 . . . . . . . . . . . . . . . . . 1 . . . . . . . . . Builder 9 | . 2 1 . . . . . . . . . . . . 3 . . . . 1 . . . 2 . . . . . Tunneler 3 | 1 . 2 . . . . . . . . . . . . . . . . . . . . . . . . . . . Hauler 2 | . 1 . . . . . . . . . . . . . . . . . . . . . . 1 . . . . . Recycler 1 | 1 . . . . . . . . . . . . . . . . . . . . . . . . . . . . . Watcher 13 | . 1 . . . 1 . . . . . . . . . 2 . . . . 1 2 2 . . . . . . 4 Swarmer 32 | . 4 2 . . . . 5 . 3 . 1 . . 4 . 2 2 . . 3 . . . . . . . 3 3 Grunt 41 | . 4 . . . 7 . . . 3 . 2 . . . . 4 5 . 8 5 2 . . 1 . . . . . Brawler 3 | . . . . . . . . . 1 . 1 . . . . . 1 . . . . . . . . . . . . Duelist 2 | . . . . 1 . . . . . . . . . . . . 1 . . . . . . . . . . . . Sentry 21 | . . . . . 3 . . . . . 1 . . . . 1 1 . . 1 1 . 4 3 . 1 . 3 2 Specialist 1 | . . . . . . . . . . . . . . . . . . . . . . . . . . 1 . . . Hunter 17 | . . . . . 1 . . . 1 . . . . . 4 3 . . 2 5 . . . . . . . . 1 Programmer 26 | . . . . . . . 1 . . . . . . . 1 . . . . 8 . . . 2 . . . 4 10 Behemoth 2 | . . . . . . . . . . . . . . . . . . . . . . . . . . . . . 2 Cetus Guard 8 | . . . . . . . . . . . . . . . . . . . . . . 8 . . . . . . . Alpha 7 1 | . . . . . . . . . . . . . . . . . . . . . . . . . . . . . 1 Master Thief 2 | . . . . . . . 1 . . . . . . . . . 1 . . . . . . . . . . . . Butcher 1 | . . . . . . . . . . . 1 . . . . . . . . . . . . . . . . . . Best Kill Streak 7 | 2 3 2 . 1 3 . 4 . 2 . 3 . . 4 5 7 7 . 3 6 1 4 3 4 . 1 . 3 2 Combat Bots Only 7 | . 2 2 . 1 3 . 4 . 2 . 3 . . 4 3 7 7 . 3 5 1 4 3 2 . 1 . 3 2 Max Kills in Single Turn 3 | 1 2 1 . 1 1 . 2 . 1 . 2 . . 2 2 2 2 . 1 2 1 1 1 2 . 1 . 3 2 Gunslinging 2 | . . . . . . . 1 . . . 1 . . . . 1 1 . . 1 . . . . . . . 2 1 Exploded 2 | . 1 . . 1 1 . . . . . . . . 2 1 . . . . . . . . . . . . . . Melee 1 | . . . . . 1 . . . 1 . 1 . . . . . . . . . . . . . . . . . . Uniques/NPCs Destroyed . | . . . . . . . . . . . . . . . . . . . . . . . . . . . . . . Combat | -11 -10 -10 -10 -9 -8 -7 -7 -7 -6 -6 -6 -6 -6 -5 -5 -5 -5 -5 -4 -4 -4 -4 -4 -4 -3 -3 -2 -1 -1 -------- Run | Yrd Mat Min Exi Min Mat Fac Low Zio Pro Fac Low Low Dat Pro Fac Upp Upp Zhi Pro Fac Ext Cet Arc Hub Res DSF Res Acc Com Hostile Shots Fired 1276 | . 36 3 . 7 80 10 28 . 75 . 72 . . 16 39 58 38 . 90 158 8 110 31 21 . 14 5 8 369 Missed 402 | . 10 1 . 3 17 5 11 . 23 . 18 . . 6 14 22 6 . 34 47 2 38 16 5 . 3 . 3 118 Hits 874 | . 26 2 . 4 63 5 17 . 52 . 54 . . 10 25 36 32 . 56 111 6 72 15 16 . 11 5 5 251 Melee 18 | . . . . 2 . . 3 . . . 5 . . . . . 8 . . . . . . . . . . . . Projectile 856 | . 26 2 . 2 63 5 14 . 52 . 49 . . 10 25 36 24 . 56 111 6 72 15 16 . 11 5 5 251 AOE 19 | . . . . . . . . . . . . . . . . . . . . 1 . . . . . . . . 18 Critical Strikes 47 | . . . . . 3 . . . . . 3 . . . 2 1 2 . 2 2 1 11 . 2 . 2 . . 16 Part Disruptions 3 | . . . . . . . . . . . . . . . . . . . . . . . . . . . . . 3 Damage Taken 10409 | . 227 11 . 80 594 40 125 . 744 . 554 . . 92 360 388 344 . 516 1080 93 681 150 85 . 90 67 136 3952 Core 7060 | . 181 8 . 61 463 32 96 . 600 . 393 . . 56 267 259 241 . 324 644 63 434 91 55 . 58 37 83 2614 Absorbed by Shields 1653 | . . . . . . . . . . . . . . . . . . . . . 17 261 51 94 . 94 71 98 967 Redirected to Core 6194 | . 131 8 . 61 409 25 96 . 479 . 326 . . 56 223 214 228 . 304 622 63 388 72 44 . 55 37 83 2270 Ignored by Resistances 9358 | . 147 7 . 46 372 31 90 . 332 . 385 . . 68 269 317 293 . 539 1021 115 973 210 175 . 191 66 159 3552 Regen/Repaired (Parts) 255 | . . . . . 33 . . 222 . . . . . . . . . . . . . . . . . . . . . Core Remaining (%) 82 | 100 . . . 89 73 . . . 48 . . . . 47 . . . . 100 . . . . 98 . 95 92 . . Volleys Fired 390 | 2 24 6 . 4 51 . 15 . 19 . 18 . . 3 15 19 20 . 22 42 11 28 9 13 . 4 7 10 48 Largest 5 | 2 2 2 . 2 2 . 2 . 2 . 2 . . 2 3 3 5 . 5 4 4 4 4 4 . 4 4 5 5 Hottest 576 | 90 100 90 . 90 90 . 119 . 119 . 119 . . 149 189 189 288 . 393 324 324 324 324 324 . 324 324 412 576 Shots Fired 1242 | 4 46 12 . 8 100 . 27 . 35 . 36 . . 4 34 57 67 . 99 168 41 112 33 52 . 16 21 48 222 Gun 1227 | 4 44 12 . 8 98 . 27 . 32 . 36 . . 2 30 57 65 . 99 168 41 112 33 52 . 16 21 48 222 Cannon . | . . . . . . . . . . . . . . . . . . . . . . . . . . . . . . Launcher 13 | . . . . . 2 . . . 3 . . . . 2 4 . 2 . . . . . . . . . . . . Special 2 | . 2 . . . . . . . . . . . . . . . . . . . . . . . . . . . . Kinetic . | . . . . . . . . . . . . . . . . . . . . . . . . . . . . . . Thermal 1095 | 2 24 6 . 4 49 . 27 . 32 . 36 . . 2 30 57 65 . 99 168 41 112 33 52 . 16 21 44 175 Explosive 13 | . . . . . 2 . . . 3 . . . . 2 4 . 2 . . . . . . . . . . . . Electromagnetic 83 | 2 22 6 . 4 49 . . . . . . . . . . . . . . . . . . . . . . . . Phasic 51 | . . . . . . . . . . . . . . . . . . . . . . . . . . . . 4 47 Robot Hit Streak 55 | 2 14 13 . 21 55 . 12 . 16 . 36 . . 14 25 26 38 . 48 42 21 39 48 44 . 23 26 27 30 Robot Miss Streak 3 | . 1 . . . 3 . 1 . 1 . 1 . . . 1 2 2 . 2 2 . 1 1 1 . . 1 2 3 Penetration Max . | . . . . . . . . . . . . . . . . . . . . . . . . . . . . . . Secondary Targets 26 | . 1 . . . . . 2 . . . 1 . . . . 1 2 . . 6 . 3 1 . . . . 4 5 Max Gunslinging Chain 2 | . 1 . . . . . 1 . . . 1 . . . . 1 1 . . 1 . 1 1 . . . . 2 1 Shots Hit Robots 964 | 2 33 7 . 8 83 . 23 . 30 . 37 . . 2 30 48 56 . 83 135 19 90 30 43 . 10 7 33 155 Core Hits 438 | 2 19 6 . 2 33 . 12 . 12 . 14 . . 7 29 34 38 . 36 55 10 32 11 16 . 3 1 14 52 Critical Kills 4 | . . . . . . . . . . . . . . . . . . . . . . . . . . . . 1 3 Critical Parts Destroyed 5 | . . . . . . . . . . . . . . . . . . . . . . . . . . . . . 5 Critical Strikes 65 | . 2 1 . . 8 . 5 . 4 . 2 . . . . 1 2 . 4 7 1 1 1 4 . 1 . 3 18 Burn 47 | . 2 1 . . 5 . 5 . 3 . 2 . . . . 1 2 . 4 7 1 1 1 4 . 1 . 2 5 Destroy 10 | . . . . . . . . . . . . . . . . . . . . . . . . . . . . 1 9 Corrupt 3 | . . . . . 3 . . . . . . . . . . . . . . . . . . . . . . . . Sever 1 | . . . . . . . . . 1 . . . . . . . . . . . . . . . . . . . . Intensify 4 | . . . . . . . . . . . . . . . . . . . . . . . . . . . . . 4 Melee Attacks 149 | . . . . . 11 2 1 . 3 1 4 3 . 1 19 3 . . 1 12 4 8 . 7 3 . 15 26 25 Impact . | . . . . . . . . . . . . . . . . . . . . . . . . . . . . . . Slashing 147 | . . . . . 11 2 1 . 3 1 4 3 . 1 17 3 . . 1 12 4 8 . 7 3 . 15 26 25 Piercing 2 | . . . . . . . . . . . . . . . 2 . . . . . . . . . . . . . . Sneak Attacks 4 | . . . . . . . . . . . . . . . 2 . . . . 1 . . . 1 . . . . . Combat Hostiles . | . . . . . . . . . . . . . . . . . . . . . . . . . . . . . . Follow-up Attacks . | . . . . . . . . . . . . . . . . . . . . . . . . . . . . . . Damage Inflicted 26454 | 30 672 90 . 149 1201 . 348 . 554 . 708 . . 265 958 1106 1351 . 2003 4369 543 2594 852 1393 . 278 225 1117 5648 Guns 24519 | 30 433 90 . 86 1032 . 348 . 479 . 594 . . 20 591 1047 1226 . 2003 4035 543 2550 852 1292 . 278 225 1117 5648 Cannons . | . . . . . . . . . . . . . . . . . . . . . . . . . . . . . . Explosions 1359 | . 239 . . 63 133 . . . 1 . . . . 245 321 . 125 . . 232 . . . . . . . . . Melee 576 | . . . . . 36 . . . 74 . 114 . . . 46 59 . . . 102 . 44 . 101 . . . . . Ramming . | . . . . . . . . . . . . . . . . . . . . . . . . . . . . . . Kinetic . | . . . . . . . . . . . . . . . . . . . . . . . . . . . . . . Thermal 22648 | . 403 12 . 101 520 . 348 . 479 . 594 . . 20 591 1047 1226 . 2003 4259 543 2550 852 1292 . 278 225 1051 4254 Explosive 767 | . . . . . 75 . . . 1 . . . . 245 321 . 125 . . . . . . . . . . . . Electromagnetic 1003 | 30 269 78 . 48 570 . . . . . . . . . . . . . . 8 . . . . . . . . . Impact . | . . . . . . . . . . . . . . . . . . . . . . . . . . . . . . Slashing 570 | . . . . . 36 . . . 74 . 114 . . . 40 59 . . . 102 . 44 . 101 . . . . . Piercing 6 | . . . . . . . . . . . . . . . 6 . . . . . . . . . . . . . . Phasic 1460 | . . . . . . . . . . . . . . . . . . . . . . . . . . . . 66 1394 Highest Corruption 27 | . . . . . . . . . 1 . . . . . . . . . . . . . . . . . 1 1 27 Average Corruption 6 | . . . . . . . . . 1 . . . . . . . . . . . . . . . . . 1 1 12 Corruption Purged . | . . . . . . . . . . . . . . . . . . . . . . . . . . . . . . Corruption Blocked . | . . . . . . . . . . . . . . . . . . . . . . . . . . . . . . Effects 93 | . . . . . . . . . 11 . . . . . . . . . . . . . . . . . 2 5 75 Message Errors 19 | . . . . . . . . . 2 . . . . . . . . . . . . . . . . . . 3 14 Matter Fused 26 | . . . . . . . . . 4 . . . . . . . . . . . . . . . . . . 1 21 Heat Flow Errors 9 | . . . . . . . . . 2 . . . . . . . . . . . . . . . . . . 1 6 Energy Discharges 13 | . . . . . . . . . 1 . . . . . . . . . . . . . . . . . . . 12 Parts Rejected 1 | . . . . . . . . . . . . . . . . . . . . . . . . . . . . . 1 Parts Fused 2 | . . . . . . . . . . . . . . . . . . . . . . . . . . . . . 2 Data Loss (minor) 13 | . . . . . . . . . 2 . . . . . . . . . . . . . . . . . 2 . 9 Data Loss (major) 1 | . . . . . . . . . . . . . . . . . . . . . . . . . . . . . 1 Misfires 1 | . . . . . . . . . . . . . . . . . . . . . . . . . . . . . 1 Alerts 2 | . . . . . . . . . . . . . . . . . . . . . . . . . . . . . 2 Misdirections 3 | . . . . . . . . . . . . . . . . . . . . . . . . . . . . . 3 Weapon Failures 3 | . . . . . . . . . . . . . . . . . . . . . . . . . . . . . 3 Overload Shots 5 | . . . . . . . . . . . . . . . . . . . . . . . . . . . . . 5 Overflow Damage 178 | . . . . . . . . . . . . . . . . 37 . . . 141 . . . . . . . . . Projectiles . | . . . . . . . . . . . . . . . . . . . . . . . . . . . . . . Explosions 49 | . . . . . . . . . . . . . . . . . . . . 49 . . . . . . . . . Melee 129 | . . . . . . . . . . . . . . . . 37 . . . 92 . . . . . . . . . Knockbacks . | . . . . . . . . . . . . . . . . . . . . . . . . . . . . . . Impact . | . . . . . . . . . . . . . . . . . . . . . . . . . . . . . . Kinetic . | . . . . . . . . . . . . . . . . . . . . . . . . . . . . . . Secondary . | . . . . . . . . . . . . . . . . . . . . . . . . . . . . . . Self-Inflicted Damage 250 | . 40 . . 25 . . . . . . . . . . 11 . 26 . . . 48 . . . . . . . 100 Shots 7 | . 2 . . 1 . . . . . . . . . . 1 . 1 . . . 1 . . . . . . . 1 Rammed . | . . . . . . . . . . . . . . . . . . . . . . . . . . . . . . Targets Rammed . | . . . . . . . . . . . . . . . . . . . . . . . . . . . . . . Kicked . | . . . . . . . . . . . . . . . . . . . . . . . . . . . . . . Crushed . | . . . . . . . . . . . . . . . . . . . . . . . . . . . . . . Highest Temperature 544 | 30 204 60 . 72 399 . 45 . 155 . 396 . . 15 162 410 310 . 477 433 380 464 544 260 . 80 237 210 76 Average Temperature 127 | 18 59 22 . 30 111 . 15 . 37 . 166 . . 10 32 177 120 . 211 180 158 193 182 124 . 60 123 98 52 Received Heat Transfer 2234 | . 99 . . 12 423 . . . 150 . 351 . . . . 153 198 . 180 153 18 150 51 33 . 19 . 4 240 Effects 28 | . . . . . 4 . . . . . 2 . . . . 1 1 . 9 6 . . 5 . . . . . . Shutdowns 10 | . . . . . . . . . . . 1 . . . . . . . 5 3 . . 1 . . . . . . Energy Bleed 7 | . . . . . . . . . . . 1 . . . . 1 1 . 3 1 . . . . . . . . . Interference 7 | . . . . . 3 . . . . . . . . . . . . . 1 . . . 3 . . . . . . Matter Decay 2 | . . . . . . . . . . . . . . . . . . . . 2 . . . . . . . . . Short Circuit 1 | . . . . . . . . . . . . . . . . . . . . . . . 1 . . . . . . Damage (minor) 1 | . . . . . 1 . . . . . . . . . . . . . . . . . . . . . . . . Siege Activations . | . . . . . . . . . . . . . . . . . . . . . . . . . . . . . . Martial Activations . | . . . . . . . . . . . . . . . . . . . . . . . . . . . . . . Shielding Activations . | . . . . . . . . . . . . . . . . . . . . . . . . . . . . . . Robots Disrupted 1 | . . . . . 1 . . . . . . . . . . . . . . . . . . . . . . . . Combat Hostiles 1 | . . . . . 1 . . . . . . . . . . . . . . . . . . . . . . . . Robots Corrupted . | . . . . . . . . . . . . . . . . . . . . . . . . . . . . . . Combat Hostiles . | . . . . . . . . . . . . . . . . . . . . . . . . . . . . . . Parts Fried . | . . . . . . . . . . . . . . . . . . . . . . . . . . . . . . Impact Corruptions . | . . . . . . . . . . . . . . . . . . . . . . . . . . . . . . Robots Melted 14 | . . . . . . . 1 . 1 . . . . . . . 1 . 2 2 . 2 1 1 . . . . 3 Combat Hostiles 14 | . . . . . . . 1 . 1 . . . . . . . 1 . 2 2 . 2 1 1 . . . . 3 Parts Melted 120 | . 2 1 . . 3 . 7 . 3 . 5 . . 1 3 10 7 . 12 33 2 5 2 3 . 1 . 4 16 Heat Transferred 36750 | . 979 111 . 211 1839 . 1221 . 1295 . 1406 . . 37 1231 2246 2679 . 3672 5613 777 3441 1184 1924 . 444 259 1347 4834 Parts Sabotaged . | . . . . . . . . . . . . . . . . . . . . . . . . . . . . . . Parts Stolen 6 | . . . . . . . 2 . . . . . . . . . 4 . . . . . . . . . . . . Parts Stripped . | . . . . . . . . . . . . . . . . . . . . . . . . . . . . . . Power Chain Reactions 6 | . 4 . . 1 1 . . . . . . . . . . . . . . . . . . . . . . . . Alert | -11 -10 -10 -10 -9 -8 -7 -7 -7 -6 -6 -6 -6 -6 -5 -5 -5 -5 -5 -4 -4 -4 -4 -4 -4 -3 -3 -2 -1 -1 ------- Run | Yrd Mat Min Exi Min Mat Fac Low Zio Pro Fac Low Low Dat Pro Fac Upp Upp Zhi Pro Fac Ext Cet Arc Hub Res DSF Res Acc Com Maximum Alert Level 3 | . . . . . . . . . . . . . . . . . . . . . . . . . . 1 1 . 3 Low Security (%) 86 | 100 100 100 . 100 100 100 . . . 100 . . . . 100 . . . . 100 100 100 100 100 100 71 82 100 21 Level 1 1 | . . . . . . . . . . . . . . . . . . . . . . . . . . 28 17 . 3 Level 2 3 | . . . . . . . . . . . . . . . . . . . . . . . . . . . . . 19 Level 3 8 | . . . . . . . . . . . . . . . . . . . . . . . . . . . . . 55 Level 4 . | . . . . . . . . . . . . . . . . . . . . . . . . . . . . . . Level 5 . | . . . . . . . . . . . . . . . . . . . . . . . . . . . . . . High Security . | . . . . . . . . . . . . . . . . . . . . . . . . . . . . . . Max Security . | . . . . . . . . . . . . . . . . . . . . . . . . . . . . . . Sterilizations 1 | . . . . . . . . . . . . . . . . . . . . . . . . . . 1 . . . Peak Influence 935 | 5 85 50 . 36 69 2 . . . 1 . . . . 145 . . . . 179 46 69 45 142 55 236 360 188 935 Initial 130 | . . . . . . . . . . . . . . . . . . . . . 4 . . . 55 1 99 130 63 Average 108 | 1 11 3 . . 6 . . . . . . . . . 15 . . . . 50 3 10 4 23 26 116 74 41 591 Influence Increases 7493 | 10 317 70 . 36 323 2 150 . 394 1 110 . . 90 229 225 200 . 240 796 160 180 80 311 16 275 414 691 2173 Destroy 0b10 Robot/C 4600 | . 160 40 . 20 220 . 120 . 340 . 100 . . 80 100 200 200 . 200 500 60 160 80 180 . 180 140 380 1140 Destroy 0b10 Robot/NC 210 | 10 30 20 . . 5 . . . . . . . . . 25 5 . . . 15 10 10 . 15 5 . . 5 55 Destroy Leader 890 | . 44 10 . 10 52 . 30 . 30 . 10 . . 10 34 20 . . 40 122 24 . . 60 2 30 30 102 230 Allied During Kill 458 | . . . . . . . . . 24 . . . . . . . . . . 9 . . . 14 1 49 34 68 259 Successful Hack 47 | . 20 . . . 9 . . . . . . . . . . . . . . . . . . . . . . 12 6 Select Force Hacks 30 | . 30 . . . . . . . . . . . . . . . . . . . . . . . . . . . . Disable Machine 64 | . 4 . . . 4 . . . . . . . . . . . . . . 20 8 4 . 4 . . . 4 16 Anti-Garrison Action 200 | . . . . . . . . . . . . . . . . . . . . . . . . . . . 150 . 50 Destroy Structure 964 | . 14 . . 6 18 2 . . . 1 . . . . 70 . . . . 130 58 6 . 38 8 16 60 120 417 Partial Spotted 15 | . . . . . 15 . . . . . . . . . . . . . . . . . . . . . . . . Lose Combat Pursuer 15 | . 15 . . . . . . . . . . . . . . . . . . . . . . . . . . . . Influence Decreases 7147 | 10 317 70 . 36 323 2 150 . 394 1 110 . . 90 229 225 200 . 240 784 172 180 80 169 154 43 362 848 1958 Entered New Map 461 | . . . . . . . . . . . . . . . . . . . . . 8 . . . 87 3 137 158 68 Time Decay 5960 | 10 317 70 . 36 323 2 150 . 343 1 110 . . 90 229 225 190 . 240 744 164 180 80 169 67 . 219 597 1404 Lost Part 30 | . . . . . . . . . . . . . . . . . 10 . . . . . . . . . . . 20 Lost Ally 696 | . . . . . . . . . 51 . . . . . . . . . . 40 . . . . . 40 6 93 466 Squads Dispatched 36 | . 2 . . . 1 . . . . . . . . . 3 . 1 . . 8 1 . . 1 . 2 5 4 8 Investigation 6 | . 2 . . . . . . . . . . . . . 1 . . . . 1 . . . . . . 1 . 1 Extermination 18 | . . . . . . . . . . . . . . . 2 . . . . 4 . . . 1 . . 2 3 6 Reinforcement 9 | . . . . . 1 . . . . . . . . . . . . . . 3 1 . . . . 2 . 1 1 Assault 2 | . . . . . . . . . . . . . . . . . 1 . . . . . . . . . 1 . . Garrison 1 | . . . . . . . . . . . . . . . . . . . . . . . . . . . 1 . . Intercept . | . . . . . . . . . . . . . . . . . . . . . . . . . . . . . . Searches Triggered . | . . . . . . . . . . . . . . . . . . . . . . . . . . . . . . Data Miner Redirects 2 | . . . . . . . . . . . . . . . 1 . . . . . . . . . . . . . 1 Construction Impeded 1 | . . . . . . . . . . . . . . . . . . . . 1 . . . . . . . . . Haulers Reinforced . | . . . . . . . . . . . . . . . . . . . . . . . . . . . . . . Active Scanning Responses . | . . . . . . . . . . . . . . . . . . . . . . . . . . . . . . Cargo Convoy Interrupts 1 | . . . . . . . . . . . . . . . 1 . . . . . . . . . . . . . . Stealth | -11 -10 -10 -10 -9 -8 -7 -7 -7 -6 -6 -6 -6 -6 -5 -5 -5 -5 -5 -4 -4 -4 -4 -4 -4 -3 -3 -2 -1 -1 --------- Run | Yrd Mat Min Exi Min Mat Fac Low Zio Pro Fac Low Low Dat Pro Fac Upp Upp Zhi Pro Fac Ext Cet Arc Hub Res DSF Res Acc Com Distress Signals 18 | . 1 . . . 3 . . . . . . . . . 1 . . . . . 5 2 . . . . . . 6 Communications Jammed . | . . . . . . . . . . . . . . . . . . . . . . . . . . . . . . Distress Signals . | . . . . . . . . . . . . . . . . . . . . . . . . . . . . . . Times Spotted 331 | . 15 2 . 3 21 4 10 . 24 . 7 2 . 8 9 10 15 . 11 29 5 11 4 11 . 9 7 16 98 Peak Tracking Total 69 | . 3 2 . 2 3 4 3 . 7 . 6 3 . 4 3 3 7 . 3 5 1 5 2 4 . 3 4 4 69 Tactical Retreats 29 | . 3 . . 3 2 . 1 . 2 . 1 2 . 1 . . 1 . 1 4 . . . 2 . . . . 6 Traps | -11 -10 -10 -10 -9 -8 -7 -7 -7 -6 -6 -6 -6 -6 -5 -5 -5 -5 -5 -4 -4 -4 -4 -4 -4 -3 -3 -2 -1 -1 ------- Run | Yrd Mat Min Exi Min Mat Fac Low Zio Pro Fac Low Low Dat Pro Fac Upp Upp Zhi Pro Fac Ext Cet Arc Hub Res DSF Res Acc Com Traps Triggered 11 | . 2 . . . . . . . . . . . . . 2 . . . . 1 . . . 1 . 1 . 3 1 Indirectly . | . . . . . . . . . . . . . . . . . . . . . . . . . . . . . . Trap Hack Attempts . | . . . . . . . . . . . . . . . . . . . . . . . . . . . . . . Triggered . | . . . . . . . . . . . . . . . . . . . . . . . . . . . . . . Disarmed 6 | . 6 . . . . . . . . . . . . . . . . . . . . . . . . . . . . Reprogrammed 3 | . 3 . . . . . . . . . . . . . . . . . . . . . . . . . . . . Reused . | . . . . . . . . . . . . . . . . . . . . . . . . . . . . . . Traps Extracted . | . . . . . . . . . . . . . . . . . . . . . . . . . . . . . . Installed . | . . . . . . . . . . . . . . . . . . . . . . . . . . . . . . Triggered . | . . . . . . . . . . . . . . . . . . . . . . . . . . . . . . Most Traps Carried 2 | . . 2 2 . . . . . . . . . . . . . . . . . . . . . . . . . . Machines | -11 -10 -10 -10 -9 -8 -7 -7 -7 -6 -6 -6 -6 -6 -5 -5 -5 -5 -5 -4 -4 -4 -4 -4 -4 -3 -3 -2 -1 -1 ---------- Run | Yrd Mat Min Exi Min Mat Fac Low Zio Pro Fac Low Low Dat Pro Fac Upp Upp Zhi Pro Fac Ext Cet Arc Hub Res DSF Res Acc Com Machines Disabled 23 | . 1 . . . 1 . . . . . . 1 . . . 1 . . . 5 3 2 . 1 . . 1 1 6 Max in Single Turn 3 | . 1 . . . 1 . . . . . . 1 . . . 1 . . . 3 1 1 . 1 . . . . 2 Garrison Access 5 | . . . . . 1 . . . . . . . . . . . . . . . . . . 1 . . 2 1 . Phase Generator 1 | . . . . . . . . . . . . . . . . . . . . . . . . . . . . . 1 Energy Cycler 1 | . . . . . . . . . . . . . . . . . . . . . 1 . . . . . . . . Machines Repaired . | . . . . . . . . . . . . . . . . . . . . . . . . . . . . . . Machines Dismantled . | . . . . . . . . . . . . . . . . . . . . . . . . . . . . . . Machines Sabotaged . | . . . . . . . . . . . . . . . . . . . . . . . . . . . . . . Overloaded Fab Kills . | . . . . . . . . . . . . . . . . . . . . . . . . . . . . . . Hacking | -11 -10 -10 -10 -9 -8 -7 -7 -7 -6 -6 -6 -6 -6 -5 -5 -5 -5 -5 -4 -4 -4 -4 -4 -4 -3 -3 -2 -1 -1 --------- Run | Yrd Mat Min Exi Min Mat Fac Low Zio Pro Fac Low Low Dat Pro Fac Upp Upp Zhi Pro Fac Ext Cet Arc Hub Res DSF Res Acc Com Machines Accessed 60 | . 7 . 2 . 7 . 1 . 1 . 2 3 4 . 1 . . 9 . 6 5 3 1 1 1 . 2 2 2 Terminals 28 | . 6 . . . 5 . . . 1 . 1 1 . . 1 . . . . 2 5 3 . . 1 . . . 2 Fabricators 2 | . . . . . . . . . . . . . . . . . . . . 2 . . . . . . . . . Repair Stations 1 | . . . . . 1 . . . . . . . . . . . . . . . . . . . . . . . . Recycling Units 4 | . 1 . . . . . . . . . . . . . . . . . . 2 . . . . . . . 1 . Scanalyzers . | . . . . . . . . . . . . . . . . . . . . . . . . . . . . . . Garrison Access 5 | . . . . . 1 . . . . . . . . . . . . . . . . . . 1 . . 2 1 . Total Hacks 215 | . 27 . 8 . 24 . 1 . 6 . 2 3 30 . 1 . . 48 . 12 5 6 25 1 1 . 4 6 5 Successful 186 | . 19 . 8 . 13 . 1 . 6 . 2 3 30 . 1 . . 48 . 11 5 6 25 1 1 . 1 3 2 Failed 29 | . 8 . . . 11 . . . . . . . . . . . . . . 1 . . . . . . 3 3 3 Catastrophic 1 | . . . . . 1 . . . . . . . . . . . . . . . . . . . . . . . . Database Lockouts . | . . . . . . . . . . . . . . . . . . . . . . . . . . . . . . Manual 126 | . 6 . 1 . 13 . . . . . . . . . 9 . . . . 18 7 1 . 16 4 . 12 15 24 Terminals 73 | . 25 . . . 20 . . . 6 . 1 1 . . 1 . . . . 2 5 6 . . 1 . . . 5 Fabricators 7 | . . . . . . . . . . . . . . . . . . . . 7 . . . . . . . . . Repair Stations 3 | . . . . . 3 . . . . . . . . . . . . . . . . . . . . . . . . Recycling Units 8 | . 2 . . . . . . . . . . . . . . . . . . 3 . . . . . . . 3 . Scanalyzers . | . . . . . . . . . . . . . . . . . . . . . . . . . . . . . . Garrison Access 9 | . . . . . 1 . . . . . . . . . . . . . . . . . . 1 . . 4 3 . Terminal Hacks 166 | . 17 . 8 . 9 . 1 . 6 . 2 3 30 . 1 . . 48 . 2 5 6 25 . 1 . . . 2 Record 94 | . . . 7 . . . 1 . 6 . 1 2 11 . . . . 36 . . . 5 25 . . . . . . Part Schematic 15 | . . . . . . . . . . . . . 11 . . . . 4 . . . . . . . . . . . Robot Schematic 5 | . . . . . . . . . . . . . 5 . . . . . . . . . . . . . . . . Robot Analysis 5 | . 1 . . . . . . . . . . . . . . . . 4 . . . . . . . . . . . Prototype ID Bank 8 | . 1 . . . . . . . . . . . 3 . . . . 4 . . . . . . . . . . . Open Door 9 | . . . . . . . . . . . 1 1 . . . . . . . 1 5 1 . . . . . . . Open DSF 3 | . . . . . . . . . . . . . . . 1 . . . . 1 . . . . 1 . . . . Branch Access Points 3 | . 2 . . . 1 . . . . . . . . . . . . . . . . . . . . . . . . Emergency Access Points 2 | . 2 . . . . . . . . . . . . . . . . . . . . . . . . . . . . Scanalyzer Index 1 | . 1 . . . . . . . . . . . . . . . . . . . . . . . . . . . . Garrison Index 1 | . . . . . 1 . . . . . . . . . . . . . . . . . . . . . . . . Alert Level 1 | . . . . . 1 . . . . . . . . . . . . . . . . . . . . . . . . Locate Traps 2 | . 2 . . . . . . . . . . . . . . . . . . . . . . . . . . . . Disarm Traps 1 | . 1 . . . . . . . . . . . . . . . . . . . . . . . . . . . . Reprogram Traps 1 | . 1 . . . . . . . . . . . . . . . . . . . . . . . . . . . . Security Status 2 | . 1 . . . 1 . . . . . . . . . . . . . . . . . . . . . . . . Surveillance Status 1 | . 1 . . . . . . . . . . . . . . . . . . . . . . . . . . . . Patrol Status 1 | . . . . . 1 . . . . . . . . . . . . . . . . . . . . . . . . Investigation Status 1 | . . . . . 1 . . . . . . . . . . . . . . . . . . . . . . . . Reinforcement Status 1 | . 1 . . . . . . . . . . . . . . . . . . . . . . . . . . . . Recall Reinforcements 1 | . . . . . 1 . . . . . . . . . . . . . . . . . . . . . . . . Hauler Manifests 1 | . . . . . 1 . . . . . . . . . . . . . . . . . . . . . . . . Registered Prototypes 1 | . 1 . . . . . . . . . . . . . . . . . . . . . . . . . . . . Zone Layout 3 | . 2 . . . 1 . . . . . . . . . . . . . . . . . . . . . . . . Proto ID Catalog 1 | . . . 1 . . . . . . . . . . . . . . . . . . . . . . . . . . Disengage Seal 2 | . . . . . . . . . . . . . . . . . . . . . . . . . . . . . 2 Fabricator Hacks 4 | . . . . . . . . . . . . . . . . . . . . 4 . . . . . . . . . Network Status 1 | . . . . . . . . . . . . . . . . . . . . 1 . . . . . . . . . Load Schematic 2 | . . . . . . . . . . . . . . . . . . . . 2 . . . . . . . . . Build 1 | . . . . . . . . . . . . . . . . . . . . 1 . . . . . . . . . Repair Station Hacks 2 | . . . . . 2 . . . . . . . . . . . . . . . . . . . . . . . . Scan Component 1 | . . . . . 1 . . . . . . . . . . . . . . . . . . . . . . . . Repair 1 | . . . . . 1 . . . . . . . . . . . . . . . . . . . . . . . . Recycling Unit Hacks 4 | . 1 . . . . . . . . . . . . . . . . . . 2 . . . . . . . 1 . Report Inventory 4 | . 1 . . . . . . . . . . . . . . . . . . 2 . . . . . . . 1 . Scanalyzer . | . . . . . . . . . . . . . . . . . . . . . . . . . . . . . . Garrison Access Hacks 4 | . . . . . 1 . . . . . . . . . . . . . . . . . . 1 . . 1 1 . Seal Access 4 | . . . . . 1 . . . . . . . . . . . . . . . . . . 1 . . 1 1 . Unauthorized Hacks 6 | . 1 . . . 1 . . . . . . . . . . . . . . 3 . . . . . . . 1 . Terminals 1 | . . . . . 1 . . . . . . . . . . . . . . . . . . . . . . . . Assimilate 1 | . . . . . 1 . . . . . . . . . . . . . . . . . . . . . . . . Fabricators 2 | . . . . . . . . . . . . . . . . . . . . 2 . . . . . . . . . Prioritize 1 | . . . . . . . . . . . . . . . . . . . . 1 . . . . . . . . . Fabnet 1 | . . . . . . . . . . . . . . . . . . . . 1 . . . . . . . . . Repair Stations . | . . . . . . . . . . . . . . . . . . . . . . . . . . . . . . Recycling Units 3 | . 1 . . . . . . . . . . . . . . . . . . 1 . . . . . . . 1 . Monitor 2 | . . . . . . . . . . . . . . . . . . . . 1 . . . . . . . 1 . Tunnel 1 | . 1 . . . . . . . . . . . . . . . . . . . . . . . . . . . . Scanalyzers . | . . . . . . . . . . . . . . . . . . . . . . . . . . . . . . Garrison Access . | . . . . . . . . . . . . . . . . . . . . . . . . . . . . . . Data Cores Recovered . | . . . . . . . . . . . . . . . . . . . . . . . . . . . . . . Used . | . . . . . . . . . . . . . . . . . . . . . . . . . . . . . . Hacking Detections 17 | . 4 . . . 5 . . . . . 1 . . . . . . . . 3 . 1 . . . . 1 2 . Full Trace Events 2 | . 1 . . . . . . . . . . . . . . . . . . . . . . . . . 1 . . Feedback Events 1 | . . . . . . . . . . . . . . . . . . . . . . . . . . . 1 . . Corruption 1 | . . . . . . . . . . . . . . . . . . . . . . . . . . . 1 . . Feedback Blocked . | . . . . . . . . . . . . . . . . . . . . . . . . . . . . . . Robot Schematics Acquired 12 | . . . . . . . . 3 . . . . 5 . . . . . . . . . . . . . . . 4 Robots Built . | . . . . . . . . . . . . . . . . . . . . . . . . . . . . . . Authchips . | . . . . . . . . . . . . . . . . . . . . . . . . . . . . . . Time . | . . . . . . . . . . . . . . . . . . . . . . . . . . . . . . Total Robot Build Rating . | . . . . . . . . . . . . . . . . . . . . . . . . . . . . . . Part Schematics Acquired 29 | . . . . . . . . 14 . . . . 11 . . . . 4 . . . . . . . . . . . Parts Built 1 | . . . . . . . . . . . . . . . . . . . . 1 . . . . . . . . . Authchips . | . . . . . . . . . . . . . . . . . . . . . . . . . . . . . . Time 84 | . . . . . . . . . . . . . . . . . . . . 84 . . . . . . . . . Total Part Build Rating 6 | . . . . . . . . . . . . . . . . . . . . 6 . . . . . . . . . Parts Repaired 1 | . . . . . 1 . . . . . . . . . . . . . . . . . . . . . . . . Time 19 | . . . . . 19 . . . . . . . . . . . . . . . . . . . . . . . . Parts Recycled . | . . . . . . . . . . . . . . . . . . . . . . . . . . . . . . Recycled Matter . | . . . . . . . . . . . . . . . . . . . . . . . . . . . . . . Retrieved Matter . | . . . . . . . . . . . . . . . . . . . . . . . . . . . . . . Retrieved Components . | . . . . . . . . . . . . . . . . . . . . . . . . . . . . . . Parts Scanalyzed . | . . . . . . . . . . . . . . . . . . . . . . . . . . . . . . Part Schematics Acquired . | . . . . . . . . . . . . . . . . . . . . . . . . . . . . . . Parts Damaged . | . . . . . . . . . . . . . . . . . . . . . . . . . . . . . . Bothacking | -11 -10 -10 -10 -9 -8 -7 -7 -7 -6 -6 -6 -6 -6 -5 -5 -5 -5 -5 -4 -4 -4 -4 -4 -4 -3 -3 -2 -1 -1 ------------ Run | Yrd Mat Min Exi Min Mat Fac Low Zio Pro Fac Low Low Dat Pro Fac Upp Upp Zhi Pro Fac Ext Cet Arc Hub Res DSF Res Acc Com Used RIF Installer . | . . . . . . . . . . . . . . . . . . . . . . . . . . . . . . Robots Hacked . | . . . . . . . . . . . . . . . . . . . . . . . . . . . . . . Non-combat . | . . . . . . . . . . . . . . . . . . . . . . . . . . . . . . Combat . | . . . . . . . . . . . . . . . . . . . . . . . . . . . . . . Robot Hacks Applied . | . . . . . . . . . . . . . . . . . . . . . . . . . . . . . . Relay Couplers Released 2 | . . . . . 2 . . . . . . . . . . . . . . . . . . . . . . . . Machine Destruction 2 | . . . . . 2 . . . . . . . . . . . . . . . . . . . . . . . . Fabnet Peak Effective % 3 | . . . . . . . . . . . . . . . . . . . . . . . . . 3 3 1 . . Robots Rewired . | . . . . . . . . . . . . . . . . . . . . . . . . . . . . . . Allies Hacked 2 | . . . . . . . . . . . . . . . . . . . . . . . . . . . . 1 1 Hacks Repelled . | . . . . . . . . . . . . . . . . . . . . . . . . . . . . . . Allies | -11 -10 -10 -10 -9 -8 -7 -7 -7 -6 -6 -6 -6 -6 -5 -5 -5 -5 -5 -4 -4 -4 -4 -4 -4 -3 -3 -2 -1 -1 -------- Run | Yrd Mat Min Exi Min Mat Fac Low Zio Pro Fac Low Low Dat Pro Fac Upp Upp Zhi Pro Fac Ext Cet Arc Hub Res DSF Res Acc Com Total Allies 86 | . . . . . . . . 8 . . . . . . 1 . . . . 2 1 . . 5 4 . 8 5 52 Largest Group 34 | . . . . . . . . 8 8 1 1 . . . 1 . . . . 2 1 . . 5 8 8 11 11 34 Highest-Rated Group 3269 | . . . . . . . . 250 250 39 39 . . . 26 . . . . 192 46 . . 494 766 766 994 988 3269 Highest-Rated Ally 269 | . . . . . . . . 40 40 39 39 . . . 26 . . . . 96 46 . . 103 103 103 122 269 269 Zionite Dispatches 12 | . . . . . . . . . . . . . . . 1 . . . . 1 . . . 2 2 . 3 3 . Heavy 3 | . . . . . . . . . . . . . . . . . . . . . . . . 1 1 . 1 . . Light 2 | . . . . . . . . . . . . . . . . . . . . . . . . 1 . . 1 . . Recon 1 | . . . . . . . . . . . . . . . . . . . . 1 . . . . . . . . . Fire 2 | . . . . . . . . . . . . . . . . . . . . . . . . . . . 1 1 . Hacker 1 | . . . . . . . . . . . . . . . . . . . . . . . . . 1 . . . . Experimental 1 | . . . . . . . . . . . . . . . . . . . . . . . . . . . . 1 . Thermal Resupply 1 | . . . . . . . . . . . . . . . . . . . . . . . . . . . . 1 . Infowar Resupply 1 | . . . . . . . . . . . . . . . 1 . . . . . . . . . . . . . . Total Orders 8 | . . . . . . . . . . . . . . . 2 . . . . 2 2 . . . . . . 2 . STAY 2 | . . . . . . . . . . . . . . . 1 . . . . . . . . . . . . 1 . DROP 2 | . . . . . . . . . . . . . . . 1 . . . . . . . . . . . . 1 . EXPLORE 4 | . . . . . . . . . . . . . . . . . . . . 2 2 . . . . . . . . Ally Attacks 426 | . . . . . . . . . 50 . 1 . . . . . . . . 9 5 . . 12 2 48 24 36 239 Total Damage 24338 | . . . . . . . . . 1163 . 21 . . . . . . . . 435 156 . . 794 136 2521 1522 2545 15045 Kills 90 | . . . . . . . . . 10 . . . . . . . . . . 3 . . . 4 1 8 7 10 47 Allies Corrupted 13 | . . . . . . . . . . . 1 . . . . . . . . . 1 . . . . . . 8 3 Allies Melted . | . . . . . . . . . . . . . . . . . . . . . . . . . . . . . . Intel | -11 -10 -10 -10 -9 -8 -7 -7 -7 -6 -6 -6 -6 -6 -5 -5 -5 -5 -5 -4 -4 -4 -4 -4 -4 -3 -3 -2 -1 -1 ------- Run | Yrd Mat Min Exi Min Mat Fac Low Zio Pro Fac Low Low Dat Pro Fac Upp Upp Zhi Pro Fac Ext Cet Arc Hub Res DSF Res Acc Com Active Infowar (turns) 29373 | 76 1028 458 941 988 1306 150 761 1815 2209 97 1623 874 157 1756 1198 1959 1445 302 1986 1458 1171 667 351 534 113 190 574 1148 2038 Sensors 22421 | 76 512 . . 1 . . 499 1815 2209 97 1623 874 157 1756 1198 1676 1339 302 1833 1312 1171 667 126 534 113 190 574 1148 619 Terrain 26124 | . . 229 941 988 1306 150 761 1815 2209 97 1623 874 157 1754 1194 1877 1371 302 1757 1277 1171 278 351 534 113 190 574 1148 1083 Seismic 8116 | 29 1028 458 941 988 1306 150 761 1815 640 . . . . . . . . . . . . . . . . . . . . Jamming 82 | . . . . . . . . . . . . . . . . 82 . . . . . . . . . . . . . ECM 28492 | . 836 458 941 973 722 150 759 1815 2209 97 1623 874 157 1756 1198 1953 1445 296 1986 1458 1171 667 351 534 113 190 574 1148 2038 Robot Analysis Total 5 | . 1 . . . . . . . . . . . . . . . . 4 . . . . . . . . . . . Derelict Logs Recovered 13 | . . 2 . . . . 1 2 2 . 1 1 . 2 . 1 . . 1 . . . . . . . . . . Drone Launches 4 | . . . . . . . . . . . . . . . . . . . . 2 2 . . . . . . . . Drone Recoveries 2 | . . . . . . . . . . . . . . . . . . . . 2 . . . . . . . . . Zionite Intel Received 14 | . . . . . . . . . . . . . . . 1 . . . . 2 1 . . 3 . . 1 1 5 Branch Access 3 | . . . . . . . . . . . . . . . 1 . . . . 1 . . . . . . . . 1 Emergency Access 1 | . . . . . . . . . . . . . . . . . . . . . 1 . . . . . . . . Guard Positions 1 | . . . . . . . . . . . . . . . . . . . . . . . . . . . . . 1 Component Stockpiles 2 | . . . . . . . . . . . . . . . . . . . . . . . . . . . . 1 1 Prototype Stockpiles 1 | . . . . . . . . . . . . . . . . . . . . . . . . 1 . . . . . Unaware Schematics 1 | . . . . . . . . . . . . . . . . . . . . . . . . . . . . . 1 Trap Installations 1 | . . . . . . . . . . . . . . . . . . . . . . . . 1 . . . . . Active Terminals 2 | . . . . . . . . . . . . . . . . . . . . . . . . . . . 1 . 1 Active Garrisons 1 | . . . . . . . . . . . . . . . . . . . . . . . . 1 . . . . . Depthwide Sectors/-1 1 | . . . . . . . . . . . . . . . . . . . . 1 . . . . . . . . . Exploration | -11 -10 -10 -10 -9 -8 -7 -7 -7 -6 -6 -6 -6 -6 -5 -5 -5 -5 -5 -4 -4 -4 -4 -4 -4 -3 -3 -2 -1 -1 ------------- Run | Yrd Mat Min Exi Min Mat Fac Low Zio Pro Fac Low Low Dat Pro Fac Upp Upp Zhi Pro Fac Ext Cet Arc Hub Res DSF Res Acc Com Turns Passed 29421 | 80 1028 458 941 988 1324 150 761 1815 2209 97 1623 874 157 1756 1198 1959 1445 302 2000 1458 1171 667 351 534 113 190 574 1148 2050 Spaces Moved 15132 | 44 560 261 587 426 442 89 435 1076 1199 45 885 463 93 967 479 965 732 171 926 642 603 327 167 244 66 105 308 644 1181 Core 37 | 10 2 . . . . . . . . . . . . . . . . . . . . . . . . . . . 25 Treads 15095 | 34 558 261 587 426 442 89 435 1076 1199 45 885 463 93 967 479 965 732 171 926 642 603 327 167 244 66 105 308 644 1156 Legs . | . . . . . . . . . . . . . . . . . . . . . . . . . . . . . . Wheels . | . . . . . . . . . . . . . . . . . . . . . . . . . . . . . . Hover . | . . . . . . . . . . . . . . . . . . . . . . . . . . . . . . Flight . | . . . . . . . . . . . . . . . . . . . . . . . . . . . . . . Fastest Speed 50 | 50 150 160 160 160 160 160 160 160 160 170 170 170 170 170 170 170 170 170 170 158 158 158 160 160 160 152 145 145 50 Average Speed 162 | 138 159 160 160 160 160 160 160 160 167 170 170 170 170 170 170 170 170 170 170 163 158 159 160 160 160 152 149 145 143 Slowest Speed 250 | 160 160 160 160 160 160 160 160 160 170 170 170 170 170 170 250 170 170 170 170 170 158 160 160 160 160 160 152 145 225 Overloaded Moves . | . . . . . . . . . . . . . . . . . . . . . . . . . . . . . . Propulsion Burnouts . | . . . . . . . . . . . . . . . . . . . . . . . . . . . . . . Robots Hopped . | . . . . . . . . . . . . . . . . . . . . . . . . . . . . . . Potential Cave-ins 12 | . . . . . 2 . . . . . . . . . . . . . . . 8 . . . . . 2 . . Cave-ins Triggered 1 | . . . . . . . . . 1 . . . . . . . . . . . . . . . . . . . . Exploration Rate (%) 58 | 4 94 61 91 90 44 2 56 90 94 2 91 54 71 90 16 88 77 62 91 23 76 92 85 28 2 87 11 20 48 Regions Visited 29 Branch Regions 19 Pre-discovered Areas 17 | . 1 1 . 1 . . 1 2 . . . . 1 2 . 1 . 3 1 3 . . . . . . . . . Known Exits Taken 27 | 1 1 1 1 1 1 1 . 1 1 1 1 1 1 1 1 1 1 1 1 1 1 1 1 1 1 . 1 1 . Unknown Exits Taken 1 | . . . . . . . 1 . . . . . . . . . . . . . . . . . . . . . . Scrap Searched 24 | . . 1 . . . . 7 2 1 . 2 2 . 2 . 3 . . 4 . . . . . . . . . . Spaces Dug 206 | . 1 . . . 9 2 . . 31 1 1 2 . 1 16 1 . . 1 62 12 . . 6 3 . 14 22 21 Terrain Destroyed 388 | . 12 . . 6 23 2 . . 31 1 1 2 . 1 32 1 10 . 2 72 50 3 . 11 3 . 14 22 89 Melee 104 | . . . . . 9 2 . . 1 1 1 2 . 1 16 1 . . 1 11 2 . . 6 3 . 11 21 15 Projectile 59 | . 1 . . . . . . . . . . . . . . . . . 1 14 11 3 . 5 . . 3 1 20 AOE 225 | . 11 . . 6 14 . . . 30 . . . . . 16 . 10 . . 47 37 . . . . . . . 54 Terrain Rammed . | . . . . . . . . . . . . . . . . . . . . . . . . . . . . . . Walls Destroyed . | . . . . . . . . . . . . . . . . . . . . . . . . . . . . . . Machines Disabled . | . . . . . . . . . . . . . . . . . . . . . . . . . . . . . . Actions | -11 -10 -10 -10 -9 -8 -7 -7 -7 -6 -6 -6 -6 -6 -5 -5 -5 -5 -5 -4 -4 -4 -4 -4 -4 -3 -3 -2 -1 -1 --------- Run | Yrd Mat Min Exi Min Mat Fac Low Zio Pro Fac Low Low Dat Pro Fac Upp Upp Zhi Pro Fac Ext Cet Arc Hub Res DSF Res Acc Com Total 18969 | 55 640 289 590 724 942 93 470 1170 1357 64 962 545 92 1074 806 1228 877 182 1296 957 798 412 236 354 69 128 389 796 1374 Wait 2755 | . 39 17 . 288 418 . 10 91 103 18 39 77 . 89 261 215 82 . 305 196 164 18 45 85 1 15 49 70 60 Move 15103 | 43 559 260 586 425 441 88 434 1075 1198 44 884 462 92 966 478 964 731 170 925 641 602 326 166 243 65 104 307 643 1181 Hop . | . . . . . . . . . . . . . . . . . . . . . . . . . . . . . . Pick Up 28 | 1 2 2 2 . 1 . 2 . . . 2 . . 1 3 1 . 1 1 3 2 . . . . . 2 1 1 Fast Attach 109 | 8 3 1 . 3 1 1 5 2 7 . . 2 . 5 5 2 4 6 5 8 2 5 1 3 . 3 4 13 10 Attach 14 | 1 . 1 . . . . 1 . . . . . . 1 1 1 . . 1 1 2 . 1 . . . . 2 1 Detach 7 | . . . . . . . . 1 . . . . . 1 1 . 1 . 1 . . . . . . . . . 2 Swap 51 | . 3 1 . 1 3 1 . . 1 1 . . . 1 1 8 7 . 6 11 . 3 1 . . . 1 . 1 Drop 94 | . 1 1 2 3 2 1 2 1 4 . . 1 . 5 8 1 . 5 4 12 4 6 2 1 . 2 4 12 10 Fire 390 | 2 24 6 . 4 51 . 15 . 19 . 18 . . 3 15 19 20 . 22 42 11 28 9 13 . 4 7 10 48 Melee 149 | . . . . . 11 2 1 . 3 1 4 3 . 1 19 3 . . 1 12 4 8 . 7 3 . 15 26 25 Ram . | . . . . . . . . . . . . . . . . . . . . . . . . . . . . . . Kick . | . . . . . . . . . . . . . . . . . . . . . . . . . . . . . . Crush . | . . . . . . . . . . . . . . . . . . . . . . . . . . . . . . Escape Stasis 1 | . . . . . . . . . . . . . . . . . . . . . . . . . . . . . 1 Rewire . | . . . . . . . . . . . . . . . . . . . . . . . . . . . . . . Trap . | . . . . . . . . . . . . . . . . . . . . . . . . . . . . . . Miscellaneous 268 | . 9 . . . 14 . . . 22 . 15 . . 1 14 14 32 . 25 31 7 18 11 2 . . . 19 34 Route ------- -11/Scrapyard -10/Materials (discovered 5 exits: *Mat x3 / *Min x2) -10/Mines (discovered 3 exits: *Mat x2 / *Exi) -10/Exiles -9/Mines (discovered 2 exits: *Mat x2) -8/Materials -7/Factory -7/Lower Caves -7/Zion (discovered 2 exits: Dee / *Pro) -6/Proximity Caves -6/Factory (discovered 2 exits: *Low x2) -6/Lower Caves -6/Lower Caves (discovered 2 exits: *Fac / *Dat) -6/Data Miner -5/Proximity Caves -5/Factory (discovered 2 exits: *Upp x2) -5/Upper Caves -5/Upper Caves (discovered 2 exits: Fac / *Zhi) -5/Zhirov -4/Proximity Caves -4/Factory (discovered 6 exits: Res / Upp x2 / *Ext x2 / Arm) -4/Extension (discovered 2 exits: *Res / *Cet) -4/Cetus (discovered 3 exits: *Res x2 / *Arc) -4/Archives (discovered 3 exits: *Res / *Hub x2) -4/Hub_04(d) (discovered 3 exits: *Res x3) -3/Research -3/DSF -2/Research -1/Access -1/Command (discovered 1 exit: *Sur) History --------- Turn | Location | Event 3 | -11/Scrapyard | Upgraded with Propulsion slot (x2) 3 | -11/Scrapyard | Upgraded with Utility slot (x3) 3 | -11/Scrapyard | Upgraded with Weapon slot (x1) 18 | -11/Scrapyard | Identified exit to Materials 18 | -11/Scrapyard | Discovered exit to Materials (range 16) 81 | -11/Scrapyard | Entered Materials 81 | -10/Materials | Identified exit to Mines 81 | -10/Materials | Discovered exit to Mines (range 7) 287 | -10/Materials | Identified exit to Materials 287 | -10/Materials | Discovered exit to Materials (range 16) 307 | -10/Materials | Build established: Hacker-Mutant 535 | -10/Materials | Discovered exit to Materials (range 13) 783 | -10/Materials | Discovered exit to Materials (range 16) 1109 | -10/Materials | Entered Mines 1111 | -10/Mines | Reached level 2 1127 | -10/Mines | Upgraded with Weapon slot (x1) 1127 | -10/Mines | Discovered exit to Materials (range 9) 1200 | -10/Mines | Found a hidden stash of uninstalled traps 1432 | -10/Mines | Learned location of Mines (-9) 1511 | -10/Mines | Build established: Hacker-Gunner 1561 | -10/Mines | Deemed a non-threat by the Exiles lab entrance 1561 | -10/Mines | Identified exit to Exiles 1561 | -10/Mines | Discovered exit to Exiles (range 5) 1567 | -10/Mines | Entered Exiles 1609 | -10/Exiles | Met 8R-AWN 1638 | -10/Exiles | Met EX-HEX 1707 | -10/Exiles | Met EX-BIN 1731 | -10/Exiles | Met EX-DEC 1786 | -10/Exiles | Visited The Gauntlet 2239 | -10/Exiles | Aligned with FarCom system 2241 | -10/Exiles | Given EX-Vault access code 2286 | -10/Exiles | Opened EX-Vault 2348 | -10/Exiles | Found Field Lobotomy Kit 2352 | -10/Exiles | Found Gui. Plasma Cannon 2354 | -10/Exiles | Exiles lab attacked by MAIN.C 2487 | -10/Exiles | Identified exit to Mines 2487 | -10/Exiles | Discovered exit to Mines (range 14) 2508 | -10/Exiles | Stole two prototypes: Gui. Plasma Cannon, Field Lobotomy Kit 2508 | -10/Exiles | Entered Mines 2510 | -9/Mines | Reached level 3 2524 | -9/Mines | Identified exit to Materials 2524 | -9/Mines | Discovered exit to Materials (range 5) 2572 | -9/Mines | Discovered exit to Materials (range 11) 2592 | -9/Mines | Learned location of Storage (-9) 2802 | -9/Mines | Build established: Hacker-Skirmisher 2951 | -9/Mines | Found a Scrap Suit stashed away for nefarious purposes 3441 | -9/Mines | Found a damaged Exp. Sensor Array with a note attached 3445 | -9/Mines | Found Prototype Device 3445 | -9/Mines | Identified Exp. Sensor Array 3496 | -9/Mines | Entered Materials 3498 | -8/Materials | Reached level 4 3498 | -8/Materials | Reached level 5 3498 | -8/Materials | Reached level 6 3640 | -8/Materials | Build established: Hacker-Assassin 3762 | -8/Materials | Repaired Katana 4586 | -8/Materials | Upgraded with Power slot (x1) 4586 | -8/Materials | Upgraded with Utility slot (x1) 4642 | -8/Materials | Reached level 7 4737 | -8/Materials | Identified exit to Factory 4737 | -8/Materials | Discovered exit to Factory (range 12) 4820 | -8/Materials | Entered Factory 4822 | -7/Factory | FarCom data flow suspended 4822 | -7/Factory | Reached level 8 4822 | -7/Factory | Reached level 9 4893 | -7/Factory | Identified exit to Lower Caves 4893 | -7/Factory | Discovered exit to Lower Caves (range 13) 4970 | -7/Factory | Entered Lower Caves 4970 | -7/Lower Caves | Spotted 42-6JD(f) 4972 | -7/Lower Caves | Encountered a Master Thief 4973 | -7/Lower Caves | Field Lobotomy Kit stolen by Master Thief 4973 | -7/Lower Caves | Spotted 07-UHN(f) 4974 | -7/Lower Caves | Encountered a Master Thief 4985 | -7/Lower Caves | Hvy. Laser stolen by Master Thief 4991 | -7/Lower Caves | Destroyed 07-UHN(f) 5021 | -7/Lower Caves | Entered a destroyed Warlord outpost 5041 | -7/Lower Caves | Learned location of Extension (-4) 5132 | -7/Lower Caves | Build established: Hacker-Mutant 5226 | -7/Lower Caves | Upgraded with Utility slot (x2) 5408 | -7/Lower Caves | Reached level 10 5428 | -7/Lower Caves | Upgraded with Utility slot (x1) 5519 | -7/Lower Caves | Build established: Wizard-Assassin 5724 | -7/Lower Caves | A Derelict revealed a hidden shortcut to a safe place 5731 | -7/Lower Caves | Entered Zion 5788 | -7/Zion | Identified exit to Proximity Caves 5788 | -7/Zion | Discovered exit to Proximity Caves (range 15) 5994 | -7/Zion | Learned Factory emergency access door positions 6106 | -7/Zion | Visited the Megawrench Repair Shop 6106 | -7/Zion | Megawrench repaired 13 parts 6160 | -7/Zion | Given A8's code to call for help 6218 | -7/Zion | Identified exit to Deep Caves 6218 | -7/Zion | Discovered exit to Deep Caves (range 10) 6295 | -7/Zion | Found Prototype Device 6295 | -7/Zion | Identified Phasing AFG 6899 | -7/Zion | Gained Derelict followers 7133 | -7/Zion | Met Imprinter 7165 | -7/Zion | Imprinted 7167 | -7/Zion | Declared Zion's savior 7546 | -7/Zion | Entered Proximity Caves 7546 | -6/Proximity Caves | Accompanied by 8 allies 7548 | -6/Proximity Caves | Reached level 11 7548 | -6/Proximity Caves | Reached level 12 7556 | -6/Proximity Caves | Upgraded with Utility slot (x1) 8026 | -6/Proximity Caves | Learned Factory trap positions 8026 | -6/Proximity Caves | Learned Research trap positions 8026 | -6/Proximity Caves | Learned Armory security intel 8027 | -6/Proximity Caves | Attracted the attention of an 0b10 base 8061 | -6/Proximity Caves | Reached level 13 8089 | -6/Proximity Caves | Lost 4 allies 8100 | -6/Proximity Caves | Crushed by falling debris 8100 | -6/Proximity Caves | Core integrity fell below 50% 8186 | -6/Proximity Caves | Upgraded with Propulsion slot (x1) 8666 | -6/Proximity Caves | Learned 4 Factory zone layouts 8703 | -6/Proximity Caves | Learned 4 Factory zone layouts 8861 | -6/Proximity Caves | Identified exit to Factory 8861 | -6/Proximity Caves | Discovered exit to Factory (range 14) 8867 | -6/Proximity Caves | Attracted the attention of an 0b10 checkpoint 9513 | -6/Proximity Caves | Build established: Wizard-Gunner 9755 | -6/Proximity Caves | Entered Factory 9755 | -6/Factory | Accompanied by 1 ally 9756 | -6/Factory | Identified exit to Lower Caves 9756 | -6/Factory | Core integrity fell below 50% 9757 | -6/Factory | Reached level 14 9758 | -6/Factory | Loaded intel: 98 trap records 9852 | -6/Factory | Entered Lower Caves 9852 | -6/Lower Caves | Accompanied by 1 ally 9854 | -6/Lower Caves | Reached level 15 10103 | -6/Lower Caves | Build established: Wizard-Assassin 10236 | -6/Lower Caves | Attracted the attention of an 0b10 checkpoint 10736 | -6/Lower Caves | Identified exit to Lower Caves 10736 | -6/Lower Caves | Discovered exit to Lower Caves (range 10) 10813 | -6/Lower Caves | Encountered a Warlord checkpoint 11475 | -6/Lower Caves | Entered another Lower Caves area 11476 | -6/Lower Caves | Encountered a Warlord checkpoint 11484 | -6/Lower Caves | Learned 8 Factory zone layouts 11571 | -6/Lower Caves | Found Alien Artifact 11571 | -6/Lower Caves | Identified Dimensional Node Initializer 11571 | -6/Lower Caves | Initialized slip node 11602 | -6/Lower Caves | Identified exit to Factory 11602 | -6/Lower Caves | Discovered exit to Factory (range 14) 11760 | -6/Lower Caves | Attracted the attention of an 0b10 checkpoint 12154 | -6/Lower Caves | Identified exit to Data Miner 12154 | -6/Lower Caves | Discovered exit to Data Miner (range 10) 12349 | -6/Lower Caves | Entered Data Miner 12349 | -6/Data Miner | Identified exit to Proximity Caves 12349 | -6/Data Miner | Discovered exit to Proximity Caves (range 6) 12351 | -6/Data Miner | Reached level 16 12382 | -6/Data Miner | Met Data Miner 12424 | -6/Data Miner | Learned location of Section 7 (-2) 12424 | -6/Data Miner | Acquired the access code to Warlord's prototype stash 12458 | -6/Data Miner | Received God Mode back door access code from Data Miner 12506 | -6/Data Miner | Entered Proximity Caves 12748 | -5/Proximity Caves | Encountered a Derelict sapper outpost 12835 | -5/Proximity Caves | Learned location of Armory (-4) 13145 | -5/Proximity Caves | Learned location of Warlord (-4) 13921 | -5/Proximity Caves | Reached level 17 13947 | -5/Proximity Caves | Upgraded with Weapon slot (x1) 14006 | -5/Proximity Caves | Discovered exit to Factory (range 14) 14213 | -5/Proximity Caves | Build established: Wizard-Skirmisher 14262 | -5/Proximity Caves | Entered Factory 14263 | -5/Factory | Identified exit to Upper Caves 14263 | -5/Factory | Core integrity fell below 50% 14264 | -5/Factory | Reached level 18 14280 | -5/Factory | Zion Infowar Resupply teleported in 14335 | -5/Factory | Identified exit to DSF 14553 | -5/Factory | Incoming investigation squad redirected 14626 | -5/Factory | Build established: Wizard-Assassin 14690 | -5/Factory | Retrieved Zion intel report: Branch Access 15444 | -5/Factory | Cargo convoy interrupted 15460 | -5/Factory | Entered Upper Caves 15462 | -5/Upper Caves | Reached level 19 15466 | -5/Upper Caves | Upgraded with Weapon slot (x1) 15602 | -5/Upper Caves | Attracted the attention of an 0b10 base 15677 | -5/Upper Caves | Destroyed 7 combat bots 16299 | -5/Upper Caves | Found Alien Artifact 16299 | -5/Upper Caves | Identified Core Expander 16299 | -5/Upper Caves | Installed Core Expander, added new Utility slot 16385 | -5/Upper Caves | Encountered a Warlord checkpoint 17229 | -5/Upper Caves | Identified exit to Upper Caves 17229 | -5/Upper Caves | Discovered exit to Upper Caves (range 9) 17419 | -5/Upper Caves | Entered another Upper Caves area 17421 | -5/Upper Caves | Reached level 20 17490 | -5/Upper Caves | Identified exit to Factory 17490 | -5/Upper Caves | Discovered exit to Factory (range 13) 17641 | -5/Upper Caves | Encountered a Warlord checkpoint 18221 | -5/Upper Caves | Attracted the attention of an 0b10 outpost 18271 | -5/Upper Caves | Destroyed 7 combat bots 18548 | -5/Upper Caves | Identified exit to Zhirov 18548 | -5/Upper Caves | Discovered exit to Zhirov (range 16) 18558 | -5/Upper Caves | Spotted IU-7Y9(f) 18558 | -5/Upper Caves | Spotted GT-XRU(f) 18559 | -5/Upper Caves | Encountered a Master Thief 18559 | -5/Upper Caves | Encountered a Master Thief 18560 | -5/Upper Caves | Spotted FE-WTW(f) 18561 | -5/Upper Caves | Encountered a Master Thief 18561 | -5/Upper Caves | Spotted N6-QFT(f) 18561 | -5/Upper Caves | Phasing AFG stolen by Master Thief 18562 | -5/Upper Caves | Encountered a Master Thief 18562 | -5/Upper Caves | Lyr. Heavy Armor Plating stolen by Master Thief 18564 | -5/Upper Caves | Arm. Medium Treads stolen by Master Thief 18565 | -5/Upper Caves | Adv. Cooling System stolen by Master Thief 18567 | -5/Upper Caves | Destroyed FE-WTW(f) 18857 | -5/Upper Caves | Build established: Wizard-Skirmisher 18864 | -5/Upper Caves | Entered Zhirov 18864 | -5/Zhirov | Identified exit to Proximity Caves 18864 | -5/Zhirov | Discovered exit to Proximity Caves (range 3) 18895 | -5/Zhirov | Met Zhirov 18927 | -5/Zhirov | Learned location of Quarantine (-2) 18927 | -5/Zhirov | Learned location of Testing (-3) 18927 | -5/Zhirov | Learned location of Command (-1) 18972 | -5/Zhirov | Zhirov requested help retrieving the SGEMP Prototype 19003 | -5/Zhirov | Found Alien Artifact 19003 | -5/Zhirov | Identified Integrated Reactor 19003 | -5/Zhirov | Installed Integrated Reactor, increased core energy generation (+10) 19097 | -5/Zhirov | Found Alien Artifact 19166 | -5/Zhirov | Entered Proximity Caves 19168 | -4/Proximity Caves | Reached level 21 20013 | -4/Proximity Caves | Discovered exit to Factory (range 5) 20347 | -4/Proximity Caves | Reached level 22 21166 | -4/Proximity Caves | Entered Factory 21167 | -4/Factory | Identified exit to Research 21167 | -4/Factory | Identified exit to Extension 21168 | -4/Factory | Reached level 23 21219 | -4/Factory | Upgraded with Utility slot (x1) 21405 | -4/Factory | Identified exit to DSF 21787 | -4/Factory | Build established: Wizard-Assassin 21794 | -4/Factory | Retrieved Zion intel report: Branch Access 21794 | -4/Factory | Identified exit to Upper Caves 21794 | -4/Factory | Identified exit to Armory 21795 | -4/Factory | Zion Recon squad teleported in 21797 | -4/Factory | Enhanced Grunt warped into view, answering call for help 21800 | -4/Factory | Enhanced Grunt warped into view, answering call for help 21920 | -4/Factory | Reached level 24 22242 | -4/Factory | Found Prototype Processor 22242 | -4/Factory | Identified Exp. Signal Interpreter 22400 | -4/Factory | Retrieved Zion intel report: Depthwide Sectors/-3 22484 | -4/Factory | Fabricated Prc. Energy Filter (x1) 22624 | -4/Factory | Entered Extension 22640 | -4/Extension | Disrupted transfer network 22784 | -4/Extension | Energy Cycler disabled 22784 | -4/Extension | Rescued a captive Derelict 22784 | -4/Extension | Rescued a captive Derelict 22785 | -4/Extension | Rescued a captive Derelict 22785 | -4/Extension | Rescued a captive Derelict 22786 | -4/Extension | Rescued a captive Derelict 22786 | -4/Extension | Rescued a captive Derelict 22790 | -4/Extension | Rescued a captive Derelict 22790 | -4/Extension | Rescued a captive Derelict 22790 | -4/Extension | Rescued a captive Derelict 22791 | -4/Extension | Rescued a captive Derelict 22813 | -4/Extension | Rescued a captive Derelict 23010 | -4/Extension | Build established: Hacker-Assassin 23534 | -4/Extension | Retrieved Zion intel report: Emergency Access 23746 | -4/Extension | Reached level 25 23758 | -4/Extension | Identified exit to Cetus 23758 | -4/Extension | Discovered exit to Cetus (range 22) 23778 | -4/Extension | Discovered exit to Research (range 15) 23795 | -4/Extension | Entered Cetus 23812 | -4/Cetus | Spotted Cetus Guard 23812 | -4/Cetus | Spotted Cetus Guard 23816 | -4/Cetus | Spotted Cetus Guard 23816 | -4/Cetus | Spotted Cetus Guard 23851 | -4/Cetus | Destroyed Cetus Guard 23861 | -4/Cetus | Destroyed Cetus Guard 23865 | -4/Cetus | Destroyed Cetus Guard 23871 | -4/Cetus | Destroyed Cetus Guard 23880 | -4/Cetus | Discovered exit to Research (range 24) 24094 | -4/Cetus | Identified exit to Archives 24094 | -4/Cetus | Discovered exit to Archives (range 17) 24124 | -4/Cetus | Discovered exit to Research (range 24) 24124 | -4/Cetus | Spotted Cetus Guard 24124 | -4/Cetus | Spotted Cetus Guard 24127 | -4/Cetus | Spotted Cetus Guard 24128 | -4/Cetus | Spotted Cetus Guard 24139 | -4/Cetus | Destroyed Cetus Guard 24150 | -4/Cetus | Destroyed Cetus Guard 24161 | -4/Cetus | Destroyed Cetus Guard 24174 | -4/Cetus | Destroyed Cetus Guard 24191 | -4/Cetus | Scared off Revision 17 24385 | -4/Cetus | Found a strange terminal 24462 | -4/Cetus | Entered Archives 24479 | -4/Archives | Identified exit to Hub_04(d) 24479 | -4/Archives | Discovered exit to Hub_04(d) (range 23) 24510 | -4/Archives | Discovered exit to Research (range 23) 24543 | -4/Archives | Discovered exit to Hub_04(d) (range 24) 24611 | -4/Archives | Unable to access archive contents 24630 | -4/Archives | Unable to access archive contents 24656 | -4/Archives | Unable to access archive contents 24656 | -4/Archives | Unable to access archive contents 24675 | -4/Archives | Unable to access archive contents 24813 | -4/Archives | Entered Hub_04(d) 24973 | -4/Hub_04(d) | Retrieved Zion intel report: Active Garrisons 24989 | -4/Hub_04(d) | Discovered exit to Research (range 22) 25006 | -4/Hub_04(d) | Discovered exit to Research (range 18) 25022 | -4/Hub_04(d) | Retrieved Zion intel report: Trap Installations 25125 | -4/Hub_04(d) | Discovered exit to Research (range 21) 25230 | -4/Hub_04(d) | Retrieved Zion intel report: Prototype Stockpiles 25249 | -4/Hub_04(d) | Zion Heavy squad teleported in 25289 | -4/Hub_04(d) | Zion Light squad teleported in 25292 | -4/Hub_04(d) | Reached level 26 25347 | -4/Hub_04(d) | Entered Research 25347 | -3/Research | Accompanied by 4 allies 25348 | -3/Research | Loaded intel: 68 trap records 25401 | -3/Research | Identified exit to DSF 25417 | -3/Research | Zion Heavy squad teleported in 25445 | -3/Research | Zion Hacker squad teleported in 25460 | -3/Research | Entered DSF 25460 | -3/DSF | Accompanied by 8 allies 25460 | -3/DSF | Reached level 27 25460 | -3/DSF | Upgraded with Weapon slot (x1) 25481 | -3/DSF | Additional patrols routed to DSF 25612 | -3/DSF | Identified exit to Research 25612 | -3/DSF | Discovered exit to Research (range 17) 25613 | -3/DSF | Sterilization system engaged 25633 | -3/DSF | Ambient heat levels rising (+10) 25648 | -3/DSF | Ambient heat levels rising (+10) 25650 | -3/DSF | Entered Research 25650 | -2/Research | Accompanied by 5 allies 25652 | -2/Research | Reached level 28 25652 | -2/Research | Reached level 29 25774 | -2/Research | Zion Heavy squad teleported in 26112 | -2/Research | Garrison activated, responded to threat 26121 | -2/Research | Reached level 30 26129 | -2/Research | Retrieved Zion intel report: Active Terminals 26130 | -2/Research | Zion Light squad teleported in 26131 | -2/Research | Upgraded with Utility slot (x1) 26149 | -2/Research | Identified exit to Access 26149 | -2/Research | Discovered exit to Access (range 23) 26161 | -2/Research | Zion Fire squad teleported in 26224 | -2/Research | Entered Access 26224 | -1/Access | Accompanied by 11 allies 26226 | -1/Access | Reached level 31 26753 | -1/Access | Found Prototype Protection 26754 | -1/Access | Identified Zio. Weapon Casing 26762 | -1/Access | Found Prototype Protection 26762 | -1/Access | Identified Zio. Heavy Carapace 26784 | -1/Access | Lost 8 allies 26804 | -1/Access | Zion Experimental squad teleported in 26863 | -1/Access | Reached level 32 27147 | -1/Access | Zion Thermal Resupply teleported in 27201 | -1/Access | Retrieved Zion intel report: Component Stockpiles 27251 | -1/Access | Zion Fire squad teleported in 27277 | -1/Access | Identified exit to Command 27277 | -1/Access | Discovered exit to Command (range 24) 27372 | -1/Access | Entered Command 27372 | -1/Command | Accompanied by 2 allies 27374 | -1/Command | Reached level 33 27374 | -1/Command | Reached level 34 27398 | -1/Command | Incoming investigation squad redirected 27406 | -1/Command | Spotted B-99 Colossus 27464 | -1/Command | Destroyed B-99 Colossus 27593 | -1/Command | Disengaged cave seal 27593 | -1/Command | Zionites emerged from the dark tunnel 27853 | -1/Command | Spotted Alpha 7 27854 | -1/Command | Spotted Striker 27854 | -1/Command | Spotted Striker 27856 | -1/Command | Spotted Alpha 7 27859 | -1/Command | Retrieved Zion intel report: Guard Positions 27861 | -1/Command | Allies destroyed Striker 27866 | -1/Command | Allies destroyed Striker 27868 | -1/Command | Reached level 35 27868 | -1/Command | Allies destroyed Alpha 7 27872 | -1/Command | Destroyed Alpha 7 27874 | -1/Command | Spotted Executioner 27875 | -1/Command | Allies destroyed Executioner 27898 | -1/Command | Spotted Executioner 27898 | -1/Command | Spotted Executioner 27898 | -1/Command | Spotted Executioner 27899 | -1/Command | Spotted B-99 Colossus 27902 | -1/Command | Allies destroyed Executioner 27905 | -1/Command | Allies destroyed Executioner 27906 | -1/Command | Spotted B-99 Colossus 27907 | -1/Command | Allies destroyed Executioner 27920 | -1/Command | Allies destroyed B-99 Colossus 27921 | -1/Command | Destroyed B-99 Colossus 27930 | -1/Command | Identified exit to Surface 27930 | -1/Command | Discovered exit to Surface (range 17) 27944 | -1/Command | Found Prototype Processor 27944 | -1/Command | Identified Exp. Targeting Computer 27961 | -1/Command | Found Prototype Processor 27961 | -1/Command | Identified Exp. Core Analyzer 27964 | -1/Command | Found Exp. Targeting Computer 27972 | -1/Command | Lost 5 allies 28057 | -1/Command | Retrieved Zion intel report: Unaware Schematics 28368 | -1/Command | System corruption reached 10% 28411 | -1/Command | Core integrity fell below 50% 28555 | -1/Command | Retrieved Zion intel report: Branch Access 28888 | -1/Command | Phase Generator disabled 28980 | -1/Command | Disengaged cave seal 28980 | -1/Command | Zionites emerged from the dark tunnel 29220 | -1/Command | Retrieved Zion intel report: Component Stockpiles 29246 | -1/Command | Retrieved Zion intel report: Active Terminals 29375 | -1/Command | Spotted M Guard 29375 | -1/Command | Spotted M Guard 29375 | -1/Command | Spotted Combat Programmer 29379 | -1/Command | Spotted Combat Programmer 29405 | -1/Command | Core integrity fell below 20% 29410 | -1/Command | Released all parts (19) 29422 | -1/Command | Destroyed by Combat Programmer with EMDS Last Messages --------------- 29410_ Released Zio. Phaser-S. 29410_ Released Hvy. Dispersion Rifle. 29410_ Released Adv. Variable Charge Gun. 29410_ Released Adv. Plasma Rifle. 29410_ Released Adv. Cryofiber Web. 29410_ Released Biometal Heavy Treads. 29410_ Released Adv. Force Field. 29410_ Released Exp. Signal Interpreter. 29410_ Released Mak. ECM Suite. 29410_ Released Phasing Sabre. 29410_ Released Zio. Heavy DM Reactor. 29410_ Released Imp. Armor Integrity Analyzer. 29410_ Released Quantum Reactor. 29411_ Acquired 8 matter. 29411_ Penetrated by EMDS Slug. 29412_ The unstable cave ceiling collapses. 29414_ Penetrated by EMDS Slug. 29415_ The unstable cave ceiling collapses. 29416_ System corrupted: Matter fused (-9). 29422_ Penetrated by EMDS Slug. Map ----- +----------------------------------------------------+ | ??????## "!]=%# """"???# """" #??????? | | ##??#### =% # ""????# """" #??????? | | ######## ! # ????# #??????? | | ######## # #??# #??????? | | #???##?####" # #### #??????? | | #?########## ########?#??# #??????? | | ############ ?#######?##### ! #??????? | | ####?####### #"#################+"######??????? | | ###########" = ############# | | #?###?###### =% # | | ######?#####= *# [[[ * | | ######?##### = % =%+ [[ | | ###??#####?# * =########## # [[ | | #######??### *= # # # | | ##?##?####?# %==# # ;############ | | ############ ! *# | | ############ [ # == | | ############ # == # % = | | ####?####### !* # %^"""" "" | | ## ########" !%!" "=% """"^ """"?? | | ##### | ######### "" % """ """"?? | | ##### ########## " "" "" | | = / !R= k | | /* / ! | | [= / | | ![%= / @ | | [!* / % ############# | | ! % #####+####### %% ############# | | #### ## %% = # | | ###### ## #! | | ###### ## R % !% ;%! | | ######## ## % =[ !! / | | # ######### ## % %! ; | | ########### ## [!= # | | ########### ## ## # | | ?##?####### ## ## ;###########/ | | #################### ## | | ###### ## ## | | ###### ## ## | | ###### "" ""? ## ## | | ###### ""R"" ## ### ############### | | ###### """" ## ###+############??? | | ###### ## # """"???? | | ###### ## # ""R""??? | | #########+########## # "" "" # | | ######## ? # # | | ######## / # | | ######## # # | | ######## # # | | ######## ###########"##### ##+##############+# | +----------------------------------------------------+ Best States ------------- Heat Dissipation 184 Energy Generation 65 Energy Capacity 1045 Matter Stores 300 Matter Capacity 300 Sight Range 18 Robot Scan Range 40 Terrain Scan Range 24 Terrain Scan Density 710 ECM Strength 2 Jamming Range 12 Base Temperature (-) 200 EM Shielding 4 Armor Coverage 1600 Resistance: KI 55 Resistance: TH 55 Resistance: EX 35 Resistance: EM 35 Resistance: I 35 Resistance: S 35 Resistance: P 35 Power Shielding 33 Phase Shifting 10 Evasion (%) 50 Targeting Accuracy 24 Target Analysis 8 Core Analysis 8 Armor Integrity Analysis 40 Recoil Reduction 4 Energy Filtering 50 Particle Charging 25 Offensive Hacking 62 Defensive Hacking 10 Item Schematics ----------------- Proton Cannon | -7/Zion | Archive Hvy. Laser | -7/Zion | Archive Corruption Screen | -7/Zion | Archive Lgt. Angular Momentum Engine | -7/Zion | Archive Arm. Medium Treads | -7/Zion | Archive Imp. Titanium Leg | -7/Zion | Archive IFF Parser | -7/Zion | Archive Lightning Gun | -7/Zion | Archive Imp. Thermal Generator | -7/Zion | Archive Microactuators | -7/Zion | Archive Adv. Terrain Scanner | -7/Zion | Archive Med. Reactive Plating | -7/Zion | Archive Imp. Field Recycling Unit | -7/Zion | Archive Imp. Kinecellerator | -7/Zion | Archive Combat Drone Bay | -6/Data Miner | Free Lgt. Regenerative Plating | -6/Data Miner | Free Enh. Flexi-carbon Leg | -6/Data Miner | Free Prc. Energy Filter | -6/Data Miner | Free Hvy. Gatling Laser | -6/Data Miner | Free Imp. Heavy Treads | -6/Data Miner | Free Quantum Capacitor | -6/Data Miner | Free Hvy. Gauss Cannon | -6/Data Miner | Free Imp. Shock Absorption System | -6/Data Miner | Free Antigrav Array | -6/Data Miner | Free Mic. Antimatter Reactor | -6/Data Miner | Free Assault Drone Bay | -5/Zhirov | Free Exp. Heat Sink | -5/Zhirov | Free Exp. Optical Array | -5/Zhirov | Free Imp. Arc Thrower | -5/Zhirov | Free Robot Schematics ------------------ Y-54 Guardian | -7/Zion | Archive W-25 Informer | -7/Zion | Archive K-01 Serf | -7/Zion | Archive I-36 Angel | -6/Data Miner | Free A-15 Conveyor | -6/Data Miner | Free G-50 Soldier | -6/Data Miner | Free X-67 Chaingunner | -6/Data Miner | Free Y-64 Sentinel | -6/Data Miner | Free R-10 Processor | -1/Command | Z-intel G-73 Enforcer | -1/Command | Z-intel A-02 Transporter | -1/Command | Z-intel A-27 Freighter | -1/Command | Z-intel Fabricated ------------ Prc. Energy Filter | x1 | -4/Factory Repaired ---------- Katana | 34% | -8/Materials Alien Tech Used ----------------- Dimensional Node Initializer Core Expander Integrated Reactor Achievements -------------- Adventurer Explorer Freeware Friend Of Zion Generalissimo Gun Specialist Help From High Places Left-hand Path Ooh, Shiny! Revising The Future Robot Respite The One The Science Guy Challenges ------------ None RPGLIKE | -11 -10 -10 -10 -9 -8 -7 -7 -7 -6 -6 -6 -6 -6 -5 -5 -5 -5 -5 -4 -4 -4 -4 -4 -4 -3 -3 -2 -1 -1 --------- Run | Yrd Mat Min Exi Min Mat Fac Low Zio Pro Fac Low Low Dat Pro Fac Upp Upp Zhi Pro Fac Ext Cet Arc Hub Res DSF Res Acc Com Levels Raised 34 | . . 1 . 1 4 2 1 . 3 1 1 . 1 1 1 1 1 . 2 2 1 . . 1 . 1 3 2 3 XP Earned 58330 | 6000 1180 750 350 1036 5991 3292 1471 800 4399 1500 1050 500 650 1450 2150 1600 1190 453 2200 3325 679 518 302 731 1399 1321 3289 4262 4492 XP Spent 56740 | 5700 260 1500 . 1370 4585 . 6050 . 4440 1000 1250 . 2335 1450 1500 1535 1450 . 1380 4575 1425 . . . . 3185 4450 3050 4250 Upgrades 119 | 9 3 5 . 5 17 . 4 . 7 1 1 . 8 2 3 2 3 . 8 5 4 . . . . 7 6 6 13 Power Slot 1 | . . . . . 1 . . . . . . . . . . . . . . . . . . . . . . . . Propulsion Slot 3 | 2 . . . . . . . . 1 . . . . . . . . . . . . . . . . . . . . Utility Slot 10 | 3 . . . . 1 . 3 . 1 . . . . . . . . . . 1 . . . . . . 1 . . Weapon Slot 5 | 1 . 1 . . . . . . . . . . . 1 . 1 . . . . . . . . . 1 . . . Core Integrity 26 | . 2 2 . . 4 . . . . . . . 3 . . 1 . . 6 . . . . . . 2 . . 6 Heat Dissipation 15 | . . . . . 3 . . . . . . . 3 . . . . . 2 . . . . . . 2 . . 5 Energy Storage 10 | . . . . . 2 . . . . . . . . . . . . . . . 2 . . . . 2 . 4 . Mass Support 1 | . . . . . . . . . . . . . 1 . . . . . . . . . . . . . . . . Inventory Capacity 6 | 3 . . . . . . . . . 1 1 . 1 . . . . . . . . . . . . . . . . Sight Range 2 | . . . . . . . . . . . . . . . . . . . . 2 . . . . . . . . . Sensor Range 11 | . . . . . . . 1 . 4 . . . . . . . . . . 1 . . . . . . 5 . . Terrain Scan Density 7 | . . . . 3 3 . . . 1 . . . . . . . . . . . . . . . . . . . . Ranged Accuracy 4 | . . . . . . . . . . . . . . . . . . . . . 2 . . . . . . . 2 Hack Attack % 4 | . 1 1 . 1 1 . . . . . . . . . . . . . . . . . . . . . . . . Hack Defense % 2 | . . 1 . 1 . . . . . . . . . . . . . . . . . . . . . . . . . KI Resistance % 4 | . . . . . 1 . . . . . . . . 1 . . 1 . . . . . . . . . . 1 . TH Resistance % 4 | . . . . . 1 . . . . . . . . . . . 2 . . . . . . . . . . 1 . TH Damage % 4 | . . . . . . . . . . . . . . . 3 . . . . 1 . . . . . . . . . Protomatter Created 3785 | . 147 . . . 162 . 54 . 60 . 132 . . 5 106 104 353 . 223 548 234 271 267 87 . 69 . 323 640 Integrity Restored 5754 | . 166 . . . 281 . . . 486 . 336 . . 15 318 312 718 . 549 608 152 408 238 34 . . . 414 719 Core 5159 | . 166 . . . 278 . . . 486 . 336 . . 15 318 312 718 . 352 555 152 408 117 34 . . . 193 719 Parts 595 | . . . . . 3 . . . . . . . . . . . . . 197 53 . . 121 . . . . 221 . Protomatter Decayed 4795 | . 76 . . . 68 . 111 . 145 . 20 32 . . . . 142 . 35 260 483 135 185 135 . 119 236 812 1801 Game ------ Seed ZhirovVariableExtrapolator Manual? 0 Play Time 04:27:59 Cumulative 40.6 hours Start 2025.09.20 @ 13:29:49 End 2025.09.21 @ 14:05:48 Sessions 3 Manual Loads 0 Difficulty Explorer Special Mode Winter2019/RPGLIKE Game No. 10 Rogue 0 Adventurer 3 Explorer 7 Win Type - Total 5 Types 2/0/1/1/0/0/0/0/0/1 Lore% 44 Gallery% 30 Achievement% 43 Wizard Run 0 Options --------- Layout 2 ASCII 0 Keyboard 0 Movement Mouse Keybinds 0 Fullscreen 1 Font 24/Smallcaps Map View 50x44 Zoom Use 0% Tactical HUD 1 Map Filters NONE Filters NONE Steam 1 RUN: 5e1f01f5-fc43-4408-bee5-c6060bda3b41